Workbook

Sheet UserInput
A1: Geometric Properties | E1: Cross-Section View
A2: Cross-Section | B2: Circular
A3: =IF(B2="Circular","Diameter","Height") -> Diameter | B3: 36 | C3: in
A4: =IF(B2="Circular","","Width") ->  | B4: 24 | C4: =IF(B2="Circular","","in") ->  | L4: =IF(Results!D3="","clr","x") -> x
A5: No. Bars | B5: 10
A6: Bar No. | B6: 9
A7: Clear Cover | B7: 3 | C7: in
A8: Ag | B8: =IF(B2="Circular",B3^2*PI()/4,B4*B3) -> 1017.87602 | C8: in2
A10: Concrete Properties
A11: f'c | B11: 4 | C11: ksi
A12: εcu | B12: 0.003
A13: Confinement | B13: Spirals
A14: β' | B14: =IF(B11<=4,0.85,IF(B11<=5,0.8,IF(B11<=6,0.75,IF(B11<=7,0.7,0.65)))) -> 0.85
A15: Ac | B15: =B8-B22 -> 1007.882739 | C15: in2
A17: Steel Properties
A18: fy | B18: 60 | C18: ksi
A19: Es | B19: 29000 | C19: ksi
A20: db | B20: =IF(B6<=8,B6/8,IF(B6=9,1.128,IF(B6=10,1.27,IF(B6=11,1.41,IF(B6=14,1.693,IF(B6=18,2.257)))))) -> 1.128 | C20: in
A21: Ab | B21: =B20^2*PI()/4 -> 0.9993280567 | C21: in2
A22: Total As | B22: =B21*B5 -> 9.993280567 | C22: in2
A24: AASHTO 5.6.4.2 Checks
A25: ρ = As/Ag | B25: =B22/B8 -> 0.009817777778
A26: Max ρ | B26: 0.08 | E26: NOTE: Rebar diameters N.T.S.
A27: Min ρ | B27: =MIN(0.015,0.135*B11/B18) -> 0.009 | E27: NOTE: Clear Cover measured to edge of longitudinal bar.
A28: Check | B28: =IF(B5<IF(B2="Circular",6,4),"Too few bars",IF(B25>=B26,"Over reinforced",IF(B25<B27,"Under reinforced","OK"))) -> OK

Sheet Coordinates (hidden)
A1: Circle Coordinates | D1: X | E1: Rebar Coordinates | I1: Rectangle Coordinates | M1: Rebar Coordinates | Q1: Scaling Coordinates | U1: Circular
A2: Node No. | B2: X | C2: Y | E2: Bar No. | F2: X | G2: Y | I2: Node No. | J2: X | K2: Y | M2: Bar No. | N2: X | O2: Y | Q2: Node No. | R2: X | S2: Y
A3: 1 | B3: =IF($D$1="X",UserInput!$B$3/2*COS((A3-1)*10*PI()/180),0) -> 18 | C3: =IF($D$1="X",UserInput!$B$3/2*SIN((A3-1)*10*PI()/180),0) -> 0 | E3: 1 | F3: 4.460969331 | G3: -13.72945187 | I3: 1 | J3: 0 | K3: 0 | Q3: 1 | R3: =IF(U1="Circular",-UserInput!B3/2,UserInput!B4/2-MAX(UserInput!B3:B4)/2) -> -18 | S3: =IF(U1="Circular",-UserInput!B3/2,UserInput!B3/2-MAX(UserInput!B3:B4)/2) -> -18
A4: 2 | B4: =IF($D$1="X",UserInput!$B$3/2*COS((A4-1)*10*PI()/180),0) -> 17.72653955 | C4: =IF($D$1="X",UserInput!$B$3/2*SIN((A4-1)*10*PI()/180),0) -> 3.125667198 | E4: 2 | F4: 11.67896933 | G4: -8.485267902 | I4: 2 | J4: =IF($L$1="X",UserInput!B4,0) -> 0 | K4: 0 | Q4: 2 | R4: =IF(U1="Circular",UserInput!B3/2,UserInput!B4-(UserInput!B4/2-MAX(UserInput!B3:B4)/2)) -> 18 | S4: =IF(U1="Circular",UserInput!B3/2,UserInput!B3-(UserInput!B3/2-MAX(UserInput!B3:B4)/2)) -> 18
A5: 3 | B5: =IF($D$1="X",UserInput!$B$3/2*COS((A5-1)*10*PI()/180),0) -> 16.91446717 | C5: =IF($D$1="X",UserInput!$B$3/2*SIN((A5-1)*10*PI()/180),0) -> 6.15636258 | E5: 3 | F5: 14.436 | G5: -8.839500596e-16 | I5: 3 | J5: =J4 -> 0 | K5: =IF(L1="X",UserInput!B3,0) -> 0
A6: 4 | B6: =IF($D$1="X",UserInput!$B$3/2*COS((A6-1)*10*PI()/180),0) -> 15.58845727 | C6: =IF($D$1="X",UserInput!$B$3/2*SIN((A6-1)*10*PI()/180),0) -> 9 | E6: 4 | F6: 11.67896933 | G6: 8.485267902 | I6: 4 | J6: 0 | K6: =K5 -> 0
A7: 5 | B7: =IF($D$1="X",UserInput!$B$3/2*COS((A7-1)*10*PI()/180),0) -> 13.78879998 | C7: =IF($D$1="X",UserInput!$B$3/2*SIN((A7-1)*10*PI()/180),0) -> 11.57017697 | E7: 5 | F7: 4.460969331 | G7: 13.72945187 | I7: 5 | J7: 0 | K7: 0
A8: 6 | B8: =IF($D$1="X",UserInput!$B$3/2*COS((A8-1)*10*PI()/180),0) -> 11.57017697 | C8: =IF($D$1="X",UserInput!$B$3/2*SIN((A8-1)*10*PI()/180),0) -> 13.78879998 | E8: 6 | F8: -4.460969331 | G8: 13.72945187
A9: 7 | B9: =IF($D$1="X",UserInput!$B$3/2*COS((A9-1)*10*PI()/180),0) -> 9 | C9: =IF($D$1="X",UserInput!$B$3/2*SIN((A9-1)*10*PI()/180),0) -> 15.58845727 | E9: 7 | F9: -11.67896933 | G9: 8.485267902
A10: 8 | B10: =IF($D$1="X",UserInput!$B$3/2*COS((A10-1)*10*PI()/180),0) -> 6.15636258 | C10: =IF($D$1="X",UserInput!$B$3/2*SIN((A10-1)*10*PI()/180),0) -> 16.91446717 | E10: 8 | F10: -14.436 | G10: 2.651850179e-15
A11: 9 | B11: =IF($D$1="X",UserInput!$B$3/2*COS((A11-1)*10*PI()/180),0) -> 3.125667198 | C11: =IF($D$1="X",UserInput!$B$3/2*SIN((A11-1)*10*PI()/180),0) -> 17.72653955 | E11: 9 | F11: -11.67896933 | G11: -8.485267902
A12: 10 | B12: =IF($D$1="X",UserInput!$B$3/2*COS((A12-1)*10*PI()/180),0) -> 1.102633609e-15 | C12: =IF($D$1="X",UserInput!$B$3/2*SIN((A12-1)*10*PI()/180),0) -> 18 | E12: 10 | F12: -4.460969331 | G12: -13.72945187
A13: 11 | B13: =IF($D$1="X",UserInput!$B$3/2*COS((A13-1)*10*PI()/180),0) -> -3.125667198 | C13: =IF($D$1="X",UserInput!$B$3/2*SIN((A13-1)*10*PI()/180),0) -> 17.72653955
A14: 12 | B14: =IF($D$1="X",UserInput!$B$3/2*COS((A14-1)*10*PI()/180),0) -> -6.15636258 | C14: =IF($D$1="X",UserInput!$B$3/2*SIN((A14-1)*10*PI()/180),0) -> 16.91446717
A15: 13 | B15: =IF($D$1="X",UserInput!$B$3/2*COS((A15-1)*10*PI()/180),0) -> -9 | C15: =IF($D$1="X",UserInput!$B$3/2*SIN((A15-1)*10*PI()/180),0) -> 15.58845727
A16: 14 | B16: =IF($D$1="X",UserInput!$B$3/2*COS((A16-1)*10*PI()/180),0) -> -11.57017697 | C16: =IF($D$1="X",UserInput!$B$3/2*SIN((A16-1)*10*PI()/180),0) -> 13.78879998
A17: 15 | B17: =IF($D$1="X",UserInput!$B$3/2*COS((A17-1)*10*PI()/180),0) -> -13.78879998 | C17: =IF($D$1="X",UserInput!$B$3/2*SIN((A17-1)*10*PI()/180),0) -> 11.57017697
A18: 16 | B18: =IF($D$1="X",UserInput!$B$3/2*COS((A18-1)*10*PI()/180),0) -> -15.58845727 | C18: =IF($D$1="X",UserInput!$B$3/2*SIN((A18-1)*10*PI()/180),0) -> 9
A19: 17 | B19: =IF($D$1="X",UserInput!$B$3/2*COS((A19-1)*10*PI()/180),0) -> -16.91446717 | C19: =IF($D$1="X",UserInput!$B$3/2*SIN((A19-1)*10*PI()/180),0) -> 6.15636258
A20: 18 | B20: =IF($D$1="X",UserInput!$B$3/2*COS((A20-1)*10*PI()/180),0) -> -17.72653955 | C20: =IF($D$1="X",UserInput!$B$3/2*SIN((A20-1)*10*PI()/180),0) -> 3.125667198
A21: 19 | B21: =IF($D$1="X",UserInput!$B$3/2*COS((A21-1)*10*PI()/180),0) -> -18 | C21: =IF($D$1="X",UserInput!$B$3/2*SIN((A21-1)*10*PI()/180),0) -> 2.205267219e-15
A22: 20 | B22: =IF($D$1="X",UserInput!$B$3/2*COS((A22-1)*10*PI()/180),0) -> -17.72653955 | C22: =IF($D$1="X",UserInput!$B$3/2*SIN((A22-1)*10*PI()/180),0) -> -3.125667198
A23: 21 | B23: =IF($D$1="X",UserInput!$B$3/2*COS((A23-1)*10*PI()/180),0) -> -16.91446717 | C23: =IF($D$1="X",UserInput!$B$3/2*SIN((A23-1)*10*PI()/180),0) -> -6.15636258
A24: 22 | B24: =IF($D$1="X",UserInput!$B$3/2*COS((A24-1)*10*PI()/180),0) -> -15.58845727 | C24: =IF($D$1="X",UserInput!$B$3/2*SIN((A24-1)*10*PI()/180),0) -> -9
A25: 23 | B25: =IF($D$1="X",UserInput!$B$3/2*COS((A25-1)*10*PI()/180),0) -> -13.78879998 | C25: =IF($D$1="X",UserInput!$B$3/2*SIN((A25-1)*10*PI()/180),0) -> -11.57017697
A26: 24 | B26: =IF($D$1="X",UserInput!$B$3/2*COS((A26-1)*10*PI()/180),0) -> -11.57017697 | C26: =IF($D$1="X",UserInput!$B$3/2*SIN((A26-1)*10*PI()/180),0) -> -13.78879998
A27: 25 | B27: =IF($D$1="X",UserInput!$B$3/2*COS((A27-1)*10*PI()/180),0) -> -9 | C27: =IF($D$1="X",UserInput!$B$3/2*SIN((A27-1)*10*PI()/180),0) -> -15.58845727
A28: 26 | B28: =IF($D$1="X",UserInput!$B$3/2*COS((A28-1)*10*PI()/180),0) -> -6.15636258 | C28: =IF($D$1="X",UserInput!$B$3/2*SIN((A28-1)*10*PI()/180),0) -> -16.91446717
A29: 27 | B29: =IF($D$1="X",UserInput!$B$3/2*COS((A29-1)*10*PI()/180),0) -> -3.125667198 | C29: =IF($D$1="X",UserInput!$B$3/2*SIN((A29-1)*10*PI()/180),0) -> -17.72653955
A30: 28 | B30: =IF($D$1="X",UserInput!$B$3/2*COS((A30-1)*10*PI()/180),0) -> -3.307900828e-15 | C30: =IF($D$1="X",UserInput!$B$3/2*SIN((A30-1)*10*PI()/180),0) -> -18
A31: 29 | B31: =IF($D$1="X",UserInput!$B$3/2*COS((A31-1)*10*PI()/180),0) -> 3.125667198 | C31: =IF($D$1="X",UserInput!$B$3/2*SIN((A31-1)*10*PI()/180),0) -> -17.72653955
A32: 30 | B32: =IF($D$1="X",UserInput!$B$3/2*COS((A32-1)*10*PI()/180),0) -> 6.15636258 | C32: =IF($D$1="X",UserInput!$B$3/2*SIN((A32-1)*10*PI()/180),0) -> -16.91446717
A33: 31 | B33: =IF($D$1="X",UserInput!$B$3/2*COS((A33-1)*10*PI()/180),0) -> 9 | C33: =IF($D$1="X",UserInput!$B$3/2*SIN((A33-1)*10*PI()/180),0) -> -15.58845727
A34: 32 | B34: =IF($D$1="X",UserInput!$B$3/2*COS((A34-1)*10*PI()/180),0) -> 11.57017697 | C34: =IF($D$1="X",UserInput!$B$3/2*SIN((A34-1)*10*PI()/180),0) -> -13.78879998
A35: 33 | B35: =IF($D$1="X",UserInput!$B$3/2*COS((A35-1)*10*PI()/180),0) -> 13.78879998 | C35: =IF($D$1="X",UserInput!$B$3/2*SIN((A35-1)*10*PI()/180),0) -> -11.57017697
A36: 34 | B36: =IF($D$1="X",UserInput!$B$3/2*COS((A36-1)*10*PI()/180),0) -> 15.58845727 | C36: =IF($D$1="X",UserInput!$B$3/2*SIN((A36-1)*10*PI()/180),0) -> -9
A37: 35 | B37: =IF($D$1="X",UserInput!$B$3/2*COS((A37-1)*10*PI()/180),0) -> 16.91446717 | C37: =IF($D$1="X",UserInput!$B$3/2*SIN((A37-1)*10*PI()/180),0) -> -6.15636258
A38: 36 | B38: =IF($D$1="X",UserInput!$B$3/2*COS((A38-1)*10*PI()/180),0) -> 17.72653955 | C38: =IF($D$1="X",UserInput!$B$3/2*SIN((A38-1)*10*PI()/180),0) -> -3.125667198
A39: 37 | B39: =IF($D$1="X",UserInput!$B$3/2*COS((A39-1)*10*PI()/180),0) -> 18 | C39: =IF($D$1="X",UserInput!$B$3/2*SIN((A39-1)*10*PI()/180),0) -> -4.410534438e-15

Sheet Calculations Circular (hidden)
A1: Strains | B1: d= | C1: =UserInput!B3/2-MIN(Coordinates!G3:G103) -> 31.72945187 | E1: εsbars
A2: εsmax description | B2: c | C2: εc | D2: εsmax | E2: 1 | F2: 2 | G2: 3 | H2: 4 | I2: 5 | J2: 6 | K2: 7 | L2: 8 | M2: 9 | N2: 10
A3: compression | B3: N/A | C3: =-UserInput!$B$12 -> -0.003 | D3: -0.003 | E3: -0.003 | F3: -0.003 | G3: -0.003 | H3: -0.003 | I3: -0.003 | J3: -0.003 | K3: -0.003 | L3: -0.003 | M3: -0.003 | N3: -0.003
A4: 0εsy | B4: =$C$1*(-C4/(D4-C4)) -> 31.72945187 | C4: =-UserInput!$B$12 -> -0.003 | D4: 0 | E4: 0 | F4: -0.0004958343424 | G4: -0.001298111161 | H4: -0.00210038798 | I4: -0.002596222322 | J4: -0.002596222322 | K4: -0.00210038798 | L4: -0.001298111161 | M4: -0.0004958343424 | N4: 0
A5: 0.25 | B5: =$C$1*(-C5/(D5-C5)) -> 27.06335601 | C5: =-UserInput!$B$12 -> -0.003 | D5: =A5*UserInput!$B$18/UserInput!$B$19 -> 0.0005172413793 | E5: 0.0005172413793 | F5: -6.408164278e-05 | G5: -0.001004682051 | H5: -0.001945282459 | I5: -0.002526605481 | J5: -0.002526605481 | K5: -0.001945282459 | L5: -0.001004682051 | M5: -6.408164278e-05 | N5: 0.0005172413793
A6: =A5+0.25 -> 0.5 | B6: 23.59369498 | C6: =-UserInput!$B$12 -> -0.003 | D6: =A6*UserInput!$B$18/UserInput!$B$19 -> 0.001034482759 | E6: 0.001034482759 | F6: 0.0003676710568 | G6: -0.0007112529408 | H6: -0.001790176938 | I6: -0.00245698864 | J6: -0.00245698864 | K6: -0.001790176938 | L6: -0.0007112529408 | M6: 0.0003676710568 | N6: 0.001034482759
A7: =A6+0.25 -> 0.75 | B7: 20.91259328 | C7: =-UserInput!$B$12 -> -0.003 | D7: =A7*UserInput!$B$18/UserInput!$B$19 -> 0.001551724138 | E7: 0.001551724138 | F7: 0.0007994237564 | G7: -0.0004178238307 | H7: -0.001635071418 | I7: -0.002387371799 | J7: -0.002387371799 | K7: -0.001635071418 | L7: -0.0004178238307 | M7: 0.0007994237564 | N7: 0.001551724138
A8: =A7+0.25 -> 1 | B8: 18.77865519 | C8: =-UserInput!$B$12 -> -0.003 | D8: =A8*UserInput!$B$18/UserInput!$B$19 -> 0.002068965517 | E8: 0.002068965517 | F8: 0.001231176456 | G8: -0.0001243947205 | H8: -0.001479965897 | I8: -0.002317754958 | J8: -0.002317754958 | K8: -0.001479965897 | L8: -0.0001243947205 | M8: 0.001231176456 | N8: 0.002068965517
A9: =A8+1 -> 2 | B9: 13.33556673 | C9: =-UserInput!$B$12 -> -0.003 | D9: =A9*UserInput!$B$18/UserInput!$B$19 -> 0.004137931034 | E9: 0.004137931034 | F9: 0.002958187254 | G9: 0.00104932172 | H9: -0.0008595438142 | I9: -0.002039287594 | J9: -0.002039287594 | K9: -0.0008595438142 | L9: 0.00104932172 | M9: 0.002958187254 | N9: 0.004137931034
A10: =A9+1 -> 3 | B10: 10.33881016 | C10: =-UserInput!$B$12 -> -0.003 | D10: =A10*UserInput!$B$18/UserInput!$B$19 -> 0.006206896552 | E10: 0.006206896552 | F10: 0.004685198053 | G10: 0.002223038161 | H10: -0.0002391217313 | I10: -0.00176082023 | J10: -0.00176082023 | K10: -0.0002391217313 | L10: 0.002223038161 | M10: 0.004685198053 | N10: 0.006206896552
A11: =A10+1 -> 4 | B11: 8.441780773 | C11: =-UserInput!$B$12 -> -0.003 | D11: =A11*UserInput!$B$18/UserInput!$B$19 -> 0.008275862069 | E11: 0.008275862069 | F11: 0.006412208851 | G11: 0.003396754601 | H11: 0.0003813003515 | I11: -0.001482352866 | J11: -0.001482352866 | K11: 0.0003813003515 | L11: 0.003396754601 | M11: 0.006412208851 | N11: 0.008275862069
A12: =A11+2 -> 6 | B12: 6.175530901 | C12: =-UserInput!$B$12 -> -0.003 | D12: =A12*UserInput!$B$18/UserInput!$B$19 -> 0.0124137931 | E12: 0.0124137931 | F12: 0.009866230448 | G12: 0.005744187483 | H12: 0.001622144517 | I12: -0.0009254181384 | J12: -0.0009254181384 | K12: 0.001622144517 | L12: 0.005744187483 | M12: 0.009866230448 | N12: 0.0124137931
A13: =A12+2 -> 8 | B13: 4.868540234 | C13: =-UserInput!$B$12 -> -0.003 | D13: =A13*UserInput!$B$18/UserInput!$B$19 -> 0.01655172414 | E13: 0.01655172414 | F13: 0.01332025204 | G13: 0.008091620364 | H13: 0.002862988683 | I13: -0.0003684834105 | J13: -0.0003684834105 | K13: 0.002862988683 | L13: 0.008091620364 | M13: 0.01332025204 | N13: 0.01655172414
A14: =A13+2 -> 10 | B14: 4.018140193 | C14: =-UserInput!$B$12 -> -0.003 | D14: =A14*UserInput!$B$18/UserInput!$B$19 -> 0.02068965517 | E14: 0.02068965517 | F14: 0.01677427364 | G14: 0.01043905324 | H14: 0.004103832849 | I14: 0.0001884513175 | J14: 0.0001884513175 | K14: 0.004103832849 | L14: 0.01043905324 | M14: 0.01677427364 | N14: 0.02068965517
A15: tension | B15: N/A | C15: =-UserInput!$B$12 -> -0.003 | D15: 0.002068965517 | E15: 0.002068965517 | F15: 0.002068965517 | G15: 0.002068965517 | H15: 0.002068965517 | I15: 0.002068965517 | J15: 0.002068965517 | K15: 0.002068965517 | L15: 0.002068965517 | M15: 0.002068965517 | N15: 0.002068965517
A17: Stresses (ksi)
A18: Point No. | B18: c | C18: fc | D18: fsmax | E18: 1 | F18: 2 | G18: 3 | H18: 4 | I18: 5 | J18: 6 | K18: 7 | L18: 8 | M18: 9 | N18: 10
A19: 1 | B19: N/A | C19: =0.85*UserInput!$B$11 -> 3.4 | D19: =IF(D3<-UserInput!$B$18/UserInput!$B$19,-UserInput!$B$18,IF(D3>UserInput!$B$18/UserInput!$B$19,UserInput!$B$18,'Calculations Circular'!D3*UserInput!$B$19)) -> -60 | E19: =IF(E3<-UserInput!$B$18/UserInput!$B$19,-UserInput!$B$18,IF(E3>UserInput!$B$18/UserInput!$B$19,UserInput!$B$18,'Calculations Circular'!E3*UserInput!$B$19)) -> -60 | F19: =IF(F3<-UserInput!$B$18/UserInput!$B$19,-UserInput!$B$18,IF(F3>UserInput!$B$18/UserInput!$B$19,UserInput!$B$18,'Calculations Circular'!F3*UserInput!$B$19)) -> -60 | G19: =IF(G3<-UserInput!$B$18/UserInput!$B$19,-UserInput!$B$18,IF(G3>UserInput!$B$18/UserInput!$B$19,UserInput!$B$18,'Calculations Circular'!G3*UserInput!$B$19)) -> -60 | H19: =IF(H3<-UserInput!$B$18/UserInput!$B$19,-UserInput!$B$18,IF(H3>UserInput!$B$18/UserInput!$B$19,UserInput!$B$18,'Calculations Circular'!H3*UserInput!$B$19)) -> -60 | I19: =IF(I3<-UserInput!$B$18/UserInput!$B$19,-UserInput!$B$18,IF(I3>UserInput!$B$18/UserInput!$B$19,UserInput!$B$18,'Calculations Circular'!I3*UserInput!$B$19)) -> -60 | J19: =IF(J3<-UserInput!$B$18/UserInput!$B$19,-UserInput!$B$18,IF(J3>UserInput!$B$18/UserInput!$B$19,UserInput!$B$18,'Calculations Circular'!J3*UserInput!$B$19)) -> -60 | K19: =IF(K3<-UserInput!$B$18/UserInput!$B$19,-UserInput!$B$18,IF(K3>UserInput!$B$18/UserInput!$B$19,UserInput!$B$18,'Calculations Circular'!K3*UserInput!$B$19)) -> -60 | L19: =IF(L3<-UserInput!$B$18/UserInput!$B$19,-UserInput!$B$18,IF(L3>UserInput!$B$18/UserInput!$B$19,UserInput!$B$18,'Calculations Circular'!L3*UserInput!$B$19)) -> -60 | M19: =IF(M3<-UserInput!$B$18/UserInput!$B$19,-UserInput!$B$18,IF(M3>UserInput!$B$18/UserInput!$B$19,UserInput!$B$18,'Calculations Circular'!M3*UserInput!$B$19)) -> -60 | N19: =IF(N3<-UserInput!$B$18/UserInput!$B$19,-UserInput!$B$18,IF(N3>UserInput!$B$18/UserInput!$B$19,UserInput!$B$18,'Calculations Circular'!N3*UserInput!$B$19)) -> -60
A20: =A19+1 -> 2 | B20: =B4 -> 31.72945187 | C20: =$C$19 -> 3.4 | D20: =IF(D4<-UserInput!$B$18/UserInput!$B$19,-UserInput!$B$18,IF(D4>UserInput!$B$18/UserInput!$B$19,UserInput!$B$18,'Calculations Circular'!D4*UserInput!$B$19)) -> 0 | E20: =IF(E4<-UserInput!$B$18/UserInput!$B$19,-UserInput!$B$18,IF(E4>UserInput!$B$18/UserInput!$B$19,UserInput!$B$18,'Calculations Circular'!E4*UserInput!$B$19)) -> 0 | F20: =IF(F4<-UserInput!$B$18/UserInput!$B$19,-UserInput!$B$18,IF(F4>UserInput!$B$18/UserInput!$B$19,UserInput!$B$18,'Calculations Circular'!F4*UserInput!$B$19)) -> -14.37919593 | G20: =IF(G4<-UserInput!$B$18/UserInput!$B$19,-UserInput!$B$18,IF(G4>UserInput!$B$18/UserInput!$B$19,UserInput!$B$18,'Calculations Circular'!G4*UserInput!$B$19)) -> -37.64522367 | H20: =IF(H4<-UserInput!$B$18/UserInput!$B$19,-UserInput!$B$18,IF(H4>UserInput!$B$18/UserInput!$B$19,UserInput!$B$18,'Calculations Circular'!H4*UserInput!$B$19)) -> -60 | I20: =IF(I4<-UserInput!$B$18/UserInput!$B$19,-UserInput!$B$18,IF(I4>UserInput!$B$18/UserInput!$B$19,UserInput!$B$18,'Calculations Circular'!I4*UserInput!$B$19)) -> -60 | J20: =IF(J4<-UserInput!$B$18/UserInput!$B$19,-UserInput!$B$18,IF(J4>UserInput!$B$18/UserInput!$B$19,UserInput!$B$18,'Calculations Circular'!J4*UserInput!$B$19)) -> -60 | K20: =IF(K4<-UserInput!$B$18/UserInput!$B$19,-UserInput!$B$18,IF(K4>UserInput!$B$18/UserInput!$B$19,UserInput!$B$18,'Calculations Circular'!K4*UserInput!$B$19)) -> -60 | L20: =IF(L4<-UserInput!$B$18/UserInput!$B$19,-UserInput!$B$18,IF(L4>UserInput!$B$18/UserInput!$B$19,UserInput!$B$18,'Calculations Circular'!L4*UserInput!$B$19)) -> -37.64522367 | M20: =IF(M4<-UserInput!$B$18/UserInput!$B$19,-UserInput!$B$18,IF(M4>UserInput!$B$18/UserInput!$B$19,UserInput!$B$18,'Calculations Circular'!M4*UserInput!$B$19)) -> -14.37919593 | N20: =IF(N4<-UserInput!$B$18/UserInput!$B$19,-UserInput!$B$18,IF(N4>UserInput!$B$18/UserInput!$B$19,UserInput!$B$18,'Calculations Circular'!N4*UserInput!$B$19)) -> 0
A21: 3 | B21: 27.06335601 | C21: =$C$19 -> 3.4 | D21: =IF(D5<-UserInput!$B$18/UserInput!$B$19,-UserInput!$B$18,IF(D5>UserInput!$B$18/UserInput!$B$19,UserInput!$B$18,'Calculations Circular'!D5*UserInput!$B$19)) -> 15 | E21: =IF(E5<-UserInput!$B$18/UserInput!$B$19,-UserInput!$B$18,IF(E5>UserInput!$B$18/UserInput!$B$19,UserInput!$B$18,'Calculations Circular'!E5*UserInput!$B$19)) -> 15 | F21: =IF(F5<-UserInput!$B$18/UserInput!$B$19,-UserInput!$B$18,IF(F5>UserInput!$B$18/UserInput!$B$19,UserInput!$B$18,'Calculations Circular'!F5*UserInput!$B$19)) -> -1.858367641 | G21: =IF(G5<-UserInput!$B$18/UserInput!$B$19,-UserInput!$B$18,IF(G5>UserInput!$B$18/UserInput!$B$19,UserInput!$B$18,'Calculations Circular'!G5*UserInput!$B$19)) -> -29.13577948 | H21: =IF(H5<-UserInput!$B$18/UserInput!$B$19,-UserInput!$B$18,IF(H5>UserInput!$B$18/UserInput!$B$19,UserInput!$B$18,'Calculations Circular'!H5*UserInput!$B$19)) -> -56.41319132 | I21: =IF(I5<-UserInput!$B$18/UserInput!$B$19,-UserInput!$B$18,IF(I5>UserInput!$B$18/UserInput!$B$19,UserInput!$B$18,'Calculations Circular'!I5*UserInput!$B$19)) -> -60 | J21: =IF(J5<-UserInput!$B$18/UserInput!$B$19,-UserInput!$B$18,IF(J5>UserInput!$B$18/UserInput!$B$19,UserInput!$B$18,'Calculations Circular'!J5*UserInput!$B$19)) -> -60 | K21: =IF(K5<-UserInput!$B$18/UserInput!$B$19,-UserInput!$B$18,IF(K5>UserInput!$B$18/UserInput!$B$19,UserInput!$B$18,'Calculations Circular'!K5*UserInput!$B$19)) -> -56.41319132 | L21: =IF(L5<-UserInput!$B$18/UserInput!$B$19,-UserInput!$B$18,IF(L5>UserInput!$B$18/UserInput!$B$19,UserInput!$B$18,'Calculations Circular'!L5*UserInput!$B$19)) -> -29.13577948 | M21: =IF(M5<-UserInput!$B$18/UserInput!$B$19,-UserInput!$B$18,IF(M5>UserInput!$B$18/UserInput!$B$19,UserInput!$B$18,'Calculations Circular'!M5*UserInput!$B$19)) -> -1.858367641 | N21: =IF(N5<-UserInput!$B$18/UserInput!$B$19,-UserInput!$B$18,IF(N5>UserInput!$B$18/UserInput!$B$19,UserInput!$B$18,'Calculations Circular'!N5*UserInput!$B$19)) -> 15
A22: 4 | B22: 23.59369498 | C22: 3.4 | D22: =IF(D6<-UserInput!$B$18/UserInput!$B$19,-UserInput!$B$18,IF(D6>UserInput!$B$18/UserInput!$B$19,UserInput!$B$18,'Calculations Circular'!D6*UserInput!$B$19)) -> 30 | E22: =IF(E6<-UserInput!$B$18/UserInput!$B$19,-UserInput!$B$18,IF(E6>UserInput!$B$18/UserInput!$B$19,UserInput!$B$18,'Calculations Circular'!E6*UserInput!$B$19)) -> 30 | F22: =IF(F6<-UserInput!$B$18/UserInput!$B$19,-UserInput!$B$18,IF(F6>UserInput!$B$18/UserInput!$B$19,UserInput!$B$18,'Calculations Circular'!F6*UserInput!$B$19)) -> 10.66246065 | G22: =IF(G6<-UserInput!$B$18/UserInput!$B$19,-UserInput!$B$18,IF(G6>UserInput!$B$18/UserInput!$B$19,UserInput!$B$18,'Calculations Circular'!G6*UserInput!$B$19)) -> -20.62633528 | H22: =IF(H6<-UserInput!$B$18/UserInput!$B$19,-UserInput!$B$18,IF(H6>UserInput!$B$18/UserInput!$B$19,UserInput!$B$18,'Calculations Circular'!H6*UserInput!$B$19)) -> -51.91513121 | I22: =IF(I6<-UserInput!$B$18/UserInput!$B$19,-UserInput!$B$18,IF(I6>UserInput!$B$18/UserInput!$B$19,UserInput!$B$18,'Calculations Circular'!I6*UserInput!$B$19)) -> -60 | J22: =IF(J6<-UserInput!$B$18/UserInput!$B$19,-UserInput!$B$18,IF(J6>UserInput!$B$18/UserInput!$B$19,UserInput!$B$18,'Calculations Circular'!J6*UserInput!$B$19)) -> -60 | K22: =IF(K6<-UserInput!$B$18/UserInput!$B$19,-UserInput!$B$18,IF(K6>UserInput!$B$18/UserInput!$B$19,UserInput!$B$18,'Calculations Circular'!K6*UserInput!$B$19)) -> -51.91513121 | L22: =IF(L6<-UserInput!$B$18/UserInput!$B$19,-UserInput!$B$18,IF(L6>UserInput!$B$18/UserInput!$B$19,UserInput!$B$18,'Calculations Circular'!L6*UserInput!$B$19)) -> -20.62633528 | M22: =IF(M6<-UserInput!$B$18/UserInput!$B$19,-UserInput!$B$18,IF(M6>UserInput!$B$18/UserInput!$B$19,UserInput!$B$18,'Calculations Circular'!M6*UserInput!$B$19)) -> 10.66246065 | N22: =IF(N6<-UserInput!$B$18/UserInput!$B$19,-UserInput!$B$18,IF(N6>UserInput!$B$18/UserInput!$B$19,UserInput!$B$18,'Calculations Circular'!N6*UserInput!$B$19)) -> 30
A23: 5 | B23: 20.91259328 | C23: 3.4 | D23: =IF(D7<-UserInput!$B$18/UserInput!$B$19,-UserInput!$B$18,IF(D7>UserInput!$B$18/UserInput!$B$19,UserInput!$B$18,'Calculations Circular'!D7*UserInput!$B$19)) -> 45 | E23: =IF(E7<-UserInput!$B$18/UserInput!$B$19,-UserInput!$B$18,IF(E7>UserInput!$B$18/UserInput!$B$19,UserInput!$B$18,'Calculations Circular'!E7*UserInput!$B$19)) -> 45 | F23: =IF(F7<-UserInput!$B$18/UserInput!$B$19,-UserInput!$B$18,IF(F7>UserInput!$B$18/UserInput!$B$19,UserInput!$B$18,'Calculations Circular'!F7*UserInput!$B$19)) -> 23.18328894 | G23: =IF(G7<-UserInput!$B$18/UserInput!$B$19,-UserInput!$B$18,IF(G7>UserInput!$B$18/UserInput!$B$19,UserInput!$B$18,'Calculations Circular'!G7*UserInput!$B$19)) -> -12.11689109 | H23: =IF(H7<-UserInput!$B$18/UserInput!$B$19,-UserInput!$B$18,IF(H7>UserInput!$B$18/UserInput!$B$19,UserInput!$B$18,'Calculations Circular'!H7*UserInput!$B$19)) -> -47.41707111 | I23: =IF(I7<-UserInput!$B$18/UserInput!$B$19,-UserInput!$B$18,IF(I7>UserInput!$B$18/UserInput!$B$19,UserInput!$B$18,'Calculations Circular'!I7*UserInput!$B$19)) -> -60 | J23: =IF(J7<-UserInput!$B$18/UserInput!$B$19,-UserInput!$B$18,IF(J7>UserInput!$B$18/UserInput!$B$19,UserInput!$B$18,'Calculations Circular'!J7*UserInput!$B$19)) -> -60 | K23: =IF(K7<-UserInput!$B$18/UserInput!$B$19,-UserInput!$B$18,IF(K7>UserInput!$B$18/UserInput!$B$19,UserInput!$B$18,'Calculations Circular'!K7*UserInput!$B$19)) -> -47.41707111 | L23: =IF(L7<-UserInput!$B$18/UserInput!$B$19,-UserInput!$B$18,IF(L7>UserInput!$B$18/UserInput!$B$19,UserInput!$B$18,'Calculations Circular'!L7*UserInput!$B$19)) -> -12.11689109 | M23: =IF(M7<-UserInput!$B$18/UserInput!$B$19,-UserInput!$B$18,IF(M7>UserInput!$B$18/UserInput!$B$19,UserInput!$B$18,'Calculations Circular'!M7*UserInput!$B$19)) -> 23.18328894 | N23: =IF(N7<-UserInput!$B$18/UserInput!$B$19,-UserInput!$B$18,IF(N7>UserInput!$B$18/UserInput!$B$19,UserInput!$B$18,'Calculations Circular'!N7*UserInput!$B$19)) -> 45
A24: 6 | B24: 18.77865519 | C24: 3.4 | D24: =IF(D8<-UserInput!$B$18/UserInput!$B$19,-UserInput!$B$18,IF(D8>UserInput!$B$18/UserInput!$B$19,UserInput!$B$18,'Calculations Circular'!D8*UserInput!$B$19)) -> 60 | E24: =IF(E8<-UserInput!$B$18/UserInput!$B$19,-UserInput!$B$18,IF(E8>UserInput!$B$18/UserInput!$B$19,UserInput!$B$18,'Calculations Circular'!E8*UserInput!$B$19)) -> 60 | F24: =IF(F8<-UserInput!$B$18/UserInput!$B$19,-UserInput!$B$18,IF(F8>UserInput!$B$18/UserInput!$B$19,UserInput!$B$18,'Calculations Circular'!F8*UserInput!$B$19)) -> 35.70411722 | G24: =IF(G8<-UserInput!$B$18/UserInput!$B$19,-UserInput!$B$18,IF(G8>UserInput!$B$18/UserInput!$B$19,UserInput!$B$18,'Calculations Circular'!G8*UserInput!$B$19)) -> -3.607446895 | H24: =IF(H8<-UserInput!$B$18/UserInput!$B$19,-UserInput!$B$18,IF(H8>UserInput!$B$18/UserInput!$B$19,UserInput!$B$18,'Calculations Circular'!H8*UserInput!$B$19)) -> -42.91901101 | I24: =IF(I8<-UserInput!$B$18/UserInput!$B$19,-UserInput!$B$18,IF(I8>UserInput!$B$18/UserInput!$B$19,UserInput!$B$18,'Calculations Circular'!I8*UserInput!$B$19)) -> -60 | J24: =IF(J8<-UserInput!$B$18/UserInput!$B$19,-UserInput!$B$18,IF(J8>UserInput!$B$18/UserInput!$B$19,UserInput!$B$18,'Calculations Circular'!J8*UserInput!$B$19)) -> -60 | K24: =IF(K8<-UserInput!$B$18/UserInput!$B$19,-UserInput!$B$18,IF(K8>UserInput!$B$18/UserInput!$B$19,UserInput!$B$18,'Calculations Circular'!K8*UserInput!$B$19)) -> -42.91901101 | L24: =IF(L8<-UserInput!$B$18/UserInput!$B$19,-UserInput!$B$18,IF(L8>UserInput!$B$18/UserInput!$B$19,UserInput!$B$18,'Calculations Circular'!L8*UserInput!$B$19)) -> -3.607446895 | M24: =IF(M8<-UserInput!$B$18/UserInput!$B$19,-UserInput!$B$18,IF(M8>UserInput!$B$18/UserInput!$B$19,UserInput!$B$18,'Calculations Circular'!M8*UserInput!$B$19)) -> 35.70411722 | N24: =IF(N8<-UserInput!$B$18/UserInput!$B$19,-UserInput!$B$18,IF(N8>UserInput!$B$18/UserInput!$B$19,UserInput!$B$18,'Calculations Circular'!N8*UserInput!$B$19)) -> 60
A25: 7 | B25: 13.33556673 | C25: 3.4 | D25: =IF(D9<-UserInput!$B$18/UserInput!$B$19,-UserInput!$B$18,IF(D9>UserInput!$B$18/UserInput!$B$19,UserInput!$B$18,'Calculations Circular'!D9*UserInput!$B$19)) -> 60 | E25: =IF(E9<-UserInput!$B$18/UserInput!$B$19,-UserInput!$B$18,IF(E9>UserInput!$B$18/UserInput!$B$19,UserInput!$B$18,'Calculations Circular'!E9*UserInput!$B$19)) -> 60 | F25: =IF(F9<-UserInput!$B$18/UserInput!$B$19,-UserInput!$B$18,IF(F9>UserInput!$B$18/UserInput!$B$19,UserInput!$B$18,'Calculations Circular'!F9*UserInput!$B$19)) -> 60 | G25: =IF(G9<-UserInput!$B$18/UserInput!$B$19,-UserInput!$B$18,IF(G9>UserInput!$B$18/UserInput!$B$19,UserInput!$B$18,'Calculations Circular'!G9*UserInput!$B$19)) -> 30.43032988 | H25: =IF(H9<-UserInput!$B$18/UserInput!$B$19,-UserInput!$B$18,IF(H9>UserInput!$B$18/UserInput!$B$19,UserInput!$B$18,'Calculations Circular'!H9*UserInput!$B$19)) -> -24.92677061 | I25: =IF(I9<-UserInput!$B$18/UserInput!$B$19,-UserInput!$B$18,IF(I9>UserInput!$B$18/UserInput!$B$19,UserInput!$B$18,'Calculations Circular'!I9*UserInput!$B$19)) -> -59.13934023 | J25: =IF(J9<-UserInput!$B$18/UserInput!$B$19,-UserInput!$B$18,IF(J9>UserInput!$B$18/UserInput!$B$19,UserInput!$B$18,'Calculations Circular'!J9*UserInput!$B$19)) -> -59.13934023 | K25: =IF(K9<-UserInput!$B$18/UserInput!$B$19,-UserInput!$B$18,IF(K9>UserInput!$B$18/UserInput!$B$19,UserInput!$B$18,'Calculations Circular'!K9*UserInput!$B$19)) -> -24.92677061 | L25: =IF(L9<-UserInput!$B$18/UserInput!$B$19,-UserInput!$B$18,IF(L9>UserInput!$B$18/UserInput!$B$19,UserInput!$B$18,'Calculations Circular'!L9*UserInput!$B$19)) -> 30.43032988 | M25: =IF(M9<-UserInput!$B$18/UserInput!$B$19,-UserInput!$B$18,IF(M9>UserInput!$B$18/UserInput!$B$19,UserInput!$B$18,'Calculations Circular'!M9*UserInput!$B$19)) -> 60 | N25: =IF(N9<-UserInput!$B$18/UserInput!$B$19,-UserInput!$B$18,IF(N9>UserInput!$B$18/UserInput!$B$19,UserInput!$B$18,'Calculations Circular'!N9*UserInput!$B$19)) -> 60
A26: 8 | B26: 10.33881016 | C26: 3.4 | D26: =IF(D10<-UserInput!$B$18/UserInput!$B$19,-UserInput!$B$18,IF(D10>UserInput!$B$18/UserInput!$B$19,UserInput!$B$18,'Calculations Circular'!D10*UserInput!$B$19)) -> 60 | E26: =IF(E10<-UserInput!$B$18/UserInput!$B$19,-UserInput!$B$18,IF(E10>UserInput!$B$18/UserInput!$B$19,UserInput!$B$18,'Calculations Circular'!E10*UserInput!$B$19)) -> 60 | F26: =IF(F10<-UserInput!$B$18/UserInput!$B$19,-UserInput!$B$18,IF(F10>UserInput!$B$18/UserInput!$B$19,UserInput!$B$18,'Calculations Circular'!F10*UserInput!$B$19)) -> 60 | G26: =IF(G10<-UserInput!$B$18/UserInput!$B$19,-UserInput!$B$18,IF(G10>UserInput!$B$18/UserInput!$B$19,UserInput!$B$18,'Calculations Circular'!G10*UserInput!$B$19)) -> 60 | H26: =IF(H10<-UserInput!$B$18/UserInput!$B$19,-UserInput!$B$18,IF(H10>UserInput!$B$18/UserInput!$B$19,UserInput!$B$18,'Calculations Circular'!H10*UserInput!$B$19)) -> -6.934530208 | I26: =IF(I10<-UserInput!$B$18/UserInput!$B$19,-UserInput!$B$18,IF(I10>UserInput!$B$18/UserInput!$B$19,UserInput!$B$18,'Calculations Circular'!I10*UserInput!$B$19)) -> -51.06378668 | J26: =IF(J10<-UserInput!$B$18/UserInput!$B$19,-UserInput!$B$18,IF(J10>UserInput!$B$18/UserInput!$B$19,UserInput!$B$18,'Calculations Circular'!J10*UserInput!$B$19)) -> -51.06378668 | K26: =IF(K10<-UserInput!$B$18/UserInput!$B$19,-UserInput!$B$18,IF(K10>UserInput!$B$18/UserInput!$B$19,UserInput!$B$18,'Calculations Circular'!K10*UserInput!$B$19)) -> -6.934530208 | L26: =IF(L10<-UserInput!$B$18/UserInput!$B$19,-UserInput!$B$18,IF(L10>UserInput!$B$18/UserInput!$B$19,UserInput!$B$18,'Calculations Circular'!L10*UserInput!$B$19)) -> 60 | M26: =IF(M10<-UserInput!$B$18/UserInput!$B$19,-UserInput!$B$18,IF(M10>UserInput!$B$18/UserInput!$B$19,UserInput!$B$18,'Calculations Circular'!M10*UserInput!$B$19)) -> 60 | N26: =IF(N10<-UserInput!$B$18/UserInput!$B$19,-UserInput!$B$18,IF(N10>UserInput!$B$18/UserInput!$B$19,UserInput!$B$18,'Calculations Circular'!N10*UserInput!$B$19)) -> 60
A27: 9 | B27: 8.441780773 | C27: 3.4 | D27: =IF(D11<-UserInput!$B$18/UserInput!$B$19,-UserInput!$B$18,IF(D11>UserInput!$B$18/UserInput!$B$19,UserInput!$B$18,'Calculations Circular'!D11*UserInput!$B$19)) -> 60 | E27: =IF(E11<-UserInput!$B$18/UserInput!$B$19,-UserInput!$B$18,IF(E11>UserInput!$B$18/UserInput!$B$19,UserInput!$B$18,'Calculations Circular'!E11*UserInput!$B$19)) -> 60 | F27: =IF(F11<-UserInput!$B$18/UserInput!$B$19,-UserInput!$B$18,IF(F11>UserInput!$B$18/UserInput!$B$19,UserInput!$B$18,'Calculations Circular'!F11*UserInput!$B$19)) -> 60 | G27: =IF(G11<-UserInput!$B$18/UserInput!$B$19,-UserInput!$B$18,IF(G11>UserInput!$B$18/UserInput!$B$19,UserInput!$B$18,'Calculations Circular'!G11*UserInput!$B$19)) -> 60 | H27: =IF(H11<-UserInput!$B$18/UserInput!$B$19,-UserInput!$B$18,IF(H11>UserInput!$B$18/UserInput!$B$19,UserInput!$B$18,'Calculations Circular'!H11*UserInput!$B$19)) -> 11.05771019 | I27: =IF(I11<-UserInput!$B$18/UserInput!$B$19,-UserInput!$B$18,IF(I11>UserInput!$B$18/UserInput!$B$19,UserInput!$B$18,'Calculations Circular'!I11*UserInput!$B$19)) -> -42.98823312 | J27: =IF(J11<-UserInput!$B$18/UserInput!$B$19,-UserInput!$B$18,IF(J11>UserInput!$B$18/UserInput!$B$19,UserInput!$B$18,'Calculations Circular'!J11*UserInput!$B$19)) -> -42.98823312 | K27: =IF(K11<-UserInput!$B$18/UserInput!$B$19,-UserInput!$B$18,IF(K11>UserInput!$B$18/UserInput!$B$19,UserInput!$B$18,'Calculations Circular'!K11*UserInput!$B$19)) -> 11.05771019 | L27: =IF(L11<-UserInput!$B$18/UserInput!$B$19,-UserInput!$B$18,IF(L11>UserInput!$B$18/UserInput!$B$19,UserInput!$B$18,'Calculations Circular'!L11*UserInput!$B$19)) -> 60 | M27: =IF(M11<-UserInput!$B$18/UserInput!$B$19,-UserInput!$B$18,IF(M11>UserInput!$B$18/UserInput!$B$19,UserInput!$B$18,'Calculations Circular'!M11*UserInput!$B$19)) -> 60 | N27: =IF(N11<-UserInput!$B$18/UserInput!$B$19,-UserInput!$B$18,IF(N11>UserInput!$B$18/UserInput!$B$19,UserInput!$B$18,'Calculations Circular'!N11*UserInput!$B$19)) -> 60
A28: 10 | B28: 6.175530901 | C28: 3.4 | D28: =IF(D12<-UserInput!$B$18/UserInput!$B$19,-UserInput!$B$18,IF(D12>UserInput!$B$18/UserInput!$B$19,UserInput!$B$18,'Calculations Circular'!D12*UserInput!$B$19)) -> 60 | E28: =IF(E12<-UserInput!$B$18/UserInput!$B$19,-UserInput!$B$18,IF(E12>UserInput!$B$18/UserInput!$B$19,UserInput!$B$18,'Calculations Circular'!E12*UserInput!$B$19)) -> 60 | F28: =IF(F12<-UserInput!$B$18/UserInput!$B$19,-UserInput!$B$18,IF(F12>UserInput!$B$18/UserInput!$B$19,UserInput!$B$18,'Calculations Circular'!F12*UserInput!$B$19)) -> 60 | G28: =IF(G12<-UserInput!$B$18/UserInput!$B$19,-UserInput!$B$18,IF(G12>UserInput!$B$18/UserInput!$B$19,UserInput!$B$18,'Calculations Circular'!G12*UserInput!$B$19)) -> 60 | H28: =IF(H12<-UserInput!$B$18/UserInput!$B$19,-UserInput!$B$18,IF(H12>UserInput!$B$18/UserInput!$B$19,UserInput!$B$18,'Calculations Circular'!H12*UserInput!$B$19)) -> 47.042191 | I28: =IF(I12<-UserInput!$B$18/UserInput!$B$19,-UserInput!$B$18,IF(I12>UserInput!$B$18/UserInput!$B$19,UserInput!$B$18,'Calculations Circular'!I12*UserInput!$B$19)) -> -26.83712601 | J28: =IF(J12<-UserInput!$B$18/UserInput!$B$19,-UserInput!$B$18,IF(J12>UserInput!$B$18/UserInput!$B$19,UserInput!$B$18,'Calculations Circular'!J12*UserInput!$B$19)) -> -26.83712601 | K28: =IF(K12<-UserInput!$B$18/UserInput!$B$19,-UserInput!$B$18,IF(K12>UserInput!$B$18/UserInput!$B$19,UserInput!$B$18,'Calculations Circular'!K12*UserInput!$B$19)) -> 47.042191 | L28: =IF(L12<-UserInput!$B$18/UserInput!$B$19,-UserInput!$B$18,IF(L12>UserInput!$B$18/UserInput!$B$19,UserInput!$B$18,'Calculations Circular'!L12*UserInput!$B$19)) -> 60 | M28: =IF(M12<-UserInput!$B$18/UserInput!$B$19,-UserInput!$B$18,IF(M12>UserInput!$B$18/UserInput!$B$19,UserInput!$B$18,'Calculations Circular'!M12*UserInput!$B$19)) -> 60 | N28: =IF(N12<-UserInput!$B$18/UserInput!$B$19,-UserInput!$B$18,IF(N12>UserInput!$B$18/UserInput!$B$19,UserInput!$B$18,'Calculations Circular'!N12*UserInput!$B$19)) -> 60
A29: 11 | B29: 4.868540234 | C29: 3.4 | D29: =IF(D13<-UserInput!$B$18/UserInput!$B$19,-UserInput!$B$18,IF(D13>UserInput!$B$18/UserInput!$B$19,UserInput!$B$18,'Calculations Circular'!D13*UserInput!$B$19)) -> 60 | E29: =IF(E13<-UserInput!$B$18/UserInput!$B$19,-UserInput!$B$18,IF(E13>UserInput!$B$18/UserInput!$B$19,UserInput!$B$18,'Calculations Circular'!E13*UserInput!$B$19)) -> 60 | F29: =IF(F13<-UserInput!$B$18/UserInput!$B$19,-UserInput!$B$18,IF(F13>UserInput!$B$18/UserInput!$B$19,UserInput!$B$18,'Calculations Circular'!F13*UserInput!$B$19)) -> 60 | G29: =IF(G13<-UserInput!$B$18/UserInput!$B$19,-UserInput!$B$18,IF(G13>UserInput!$B$18/UserInput!$B$19,UserInput!$B$18,'Calculations Circular'!G13*UserInput!$B$19)) -> 60 | H29: =IF(H13<-UserInput!$B$18/UserInput!$B$19,-UserInput!$B$18,IF(H13>UserInput!$B$18/UserInput!$B$19,UserInput!$B$18,'Calculations Circular'!H13*UserInput!$B$19)) -> 60 | I29: =IF(I13<-UserInput!$B$18/UserInput!$B$19,-UserInput!$B$18,IF(I13>UserInput!$B$18/UserInput!$B$19,UserInput!$B$18,'Calculations Circular'!I13*UserInput!$B$19)) -> -10.6860189 | J29: =IF(J13<-UserInput!$B$18/UserInput!$B$19,-UserInput!$B$18,IF(J13>UserInput!$B$18/UserInput!$B$19,UserInput!$B$18,'Calculations Circular'!J13*UserInput!$B$19)) -> -10.6860189 | K29: =IF(K13<-UserInput!$B$18/UserInput!$B$19,-UserInput!$B$18,IF(K13>UserInput!$B$18/UserInput!$B$19,UserInput!$B$18,'Calculations Circular'!K13*UserInput!$B$19)) -> 60 | L29: =IF(L13<-UserInput!$B$18/UserInput!$B$19,-UserInput!$B$18,IF(L13>UserInput!$B$18/UserInput!$B$19,UserInput!$B$18,'Calculations Circular'!L13*UserInput!$B$19)) -> 60 | M29: =IF(M13<-UserInput!$B$18/UserInput!$B$19,-UserInput!$B$18,IF(M13>UserInput!$B$18/UserInput!$B$19,UserInput!$B$18,'Calculations Circular'!M13*UserInput!$B$19)) -> 60 | N29: =IF(N13<-UserInput!$B$18/UserInput!$B$19,-UserInput!$B$18,IF(N13>UserInput!$B$18/UserInput!$B$19,UserInput!$B$18,'Calculations Circular'!N13*UserInput!$B$19)) -> 60
A30: 12 | B30: 4.018140193 | C30: 3.4 | D30: =IF(D14<-UserInput!$B$18/UserInput!$B$19,-UserInput!$B$18,IF(D14>UserInput!$B$18/UserInput!$B$19,UserInput!$B$18,'Calculations Circular'!D14*UserInput!$B$19)) -> 60 | E30: =IF(E14<-UserInput!$B$18/UserInput!$B$19,-UserInput!$B$18,IF(E14>UserInput!$B$18/UserInput!$B$19,UserInput!$B$18,'Calculations Circular'!E14*UserInput!$B$19)) -> 60 | F30: =IF(F14<-UserInput!$B$18/UserInput!$B$19,-UserInput!$B$18,IF(F14>UserInput!$B$18/UserInput!$B$19,UserInput!$B$18,'Calculations Circular'!F14*UserInput!$B$19)) -> 60 | G30: =IF(G14<-UserInput!$B$18/UserInput!$B$19,-UserInput!$B$18,IF(G14>UserInput!$B$18/UserInput!$B$19,UserInput!$B$18,'Calculations Circular'!G14*UserInput!$B$19)) -> 60 | H30: =IF(H14<-UserInput!$B$18/UserInput!$B$19,-UserInput!$B$18,IF(H14>UserInput!$B$18/UserInput!$B$19,UserInput!$B$18,'Calculations Circular'!H14*UserInput!$B$19)) -> 60 | I30: =IF(I14<-UserInput!$B$18/UserInput!$B$19,-UserInput!$B$18,IF(I14>UserInput!$B$18/UserInput!$B$19,UserInput!$B$18,'Calculations Circular'!I14*UserInput!$B$19)) -> 5.465088207 | J30: =IF(J14<-UserInput!$B$18/UserInput!$B$19,-UserInput!$B$18,IF(J14>UserInput!$B$18/UserInput!$B$19,UserInput!$B$18,'Calculations Circular'!J14*UserInput!$B$19)) -> 5.465088207 | K30: =IF(K14<-UserInput!$B$18/UserInput!$B$19,-UserInput!$B$18,IF(K14>UserInput!$B$18/UserInput!$B$19,UserInput!$B$18,'Calculations Circular'!K14*UserInput!$B$19)) -> 60 | L30: =IF(L14<-UserInput!$B$18/UserInput!$B$19,-UserInput!$B$18,IF(L14>UserInput!$B$18/UserInput!$B$19,UserInput!$B$18,'Calculations Circular'!L14*UserInput!$B$19)) -> 60 | M30: =IF(M14<-UserInput!$B$18/UserInput!$B$19,-UserInput!$B$18,IF(M14>UserInput!$B$18/UserInput!$B$19,UserInput!$B$18,'Calculations Circular'!M14*UserInput!$B$19)) -> 60 | N30: =IF(N14<-UserInput!$B$18/UserInput!$B$19,-UserInput!$B$18,IF(N14>UserInput!$B$18/UserInput!$B$19,UserInput!$B$18,'Calculations Circular'!N14*UserInput!$B$19)) -> 60
A31: 13 | B31: N/A | C31: 3.4 | D31: =IF(D15<-UserInput!$B$18/UserInput!$B$19,-UserInput!$B$18,IF(D15>UserInput!$B$18/UserInput!$B$19,UserInput!$B$18,'Calculations Circular'!D15*UserInput!$B$19)) -> 60 | E31: =IF(E15<-UserInput!$B$18/UserInput!$B$19,-UserInput!$B$18,IF(E15>UserInput!$B$18/UserInput!$B$19,UserInput!$B$18,'Calculations Circular'!E15*UserInput!$B$19)) -> 60 | F31: =IF(F15<-UserInput!$B$18/UserInput!$B$19,-UserInput!$B$18,IF(F15>UserInput!$B$18/UserInput!$B$19,UserInput!$B$18,'Calculations Circular'!F15*UserInput!$B$19)) -> 60 | G31: =IF(G15<-UserInput!$B$18/UserInput!$B$19,-UserInput!$B$18,IF(G15>UserInput!$B$18/UserInput!$B$19,UserInput!$B$18,'Calculations Circular'!G15*UserInput!$B$19)) -> 60 | H31: =IF(H15<-UserInput!$B$18/UserInput!$B$19,-UserInput!$B$18,IF(H15>UserInput!$B$18/UserInput!$B$19,UserInput!$B$18,'Calculations Circular'!H15*UserInput!$B$19)) -> 60 | I31: =IF(I15<-UserInput!$B$18/UserInput!$B$19,-UserInput!$B$18,IF(I15>UserInput!$B$18/UserInput!$B$19,UserInput!$B$18,'Calculations Circular'!I15*UserInput!$B$19)) -> 60 | J31: =IF(J15<-UserInput!$B$18/UserInput!$B$19,-UserInput!$B$18,IF(J15>UserInput!$B$18/UserInput!$B$19,UserInput!$B$18,'Calculations Circular'!J15*UserInput!$B$19)) -> 60 | K31: =IF(K15<-UserInput!$B$18/UserInput!$B$19,-UserInput!$B$18,IF(K15>UserInput!$B$18/UserInput!$B$19,UserInput!$B$18,'Calculations Circular'!K15*UserInput!$B$19)) -> 60 | L31: =IF(L15<-UserInput!$B$18/UserInput!$B$19,-UserInput!$B$18,IF(L15>UserInput!$B$18/UserInput!$B$19,UserInput!$B$18,'Calculations Circular'!L15*UserInput!$B$19)) -> 60 | M31: =IF(M15<-UserInput!$B$18/UserInput!$B$19,-UserInput!$B$18,IF(M15>UserInput!$B$18/UserInput!$B$19,UserInput!$B$18,'Calculations Circular'!M15*UserInput!$B$19)) -> 60 | N31: =IF(N15<-UserInput!$B$18/UserInput!$B$19,-UserInput!$B$18,IF(N15>UserInput!$B$18/UserInput!$B$19,UserInput!$B$18,'Calculations Circular'!N15*UserInput!$B$19)) -> 60
A33: Forces (kip)
A34: Point No. | B34: c | C34: a=β'c | D34: Ascomp | E34: Accomp | F34: C arm | G34: C | H34: Tbar max | I34: 1 | J34: 2 | K34: 3 | L34: 4 | M34: 5 | N34: 6 | O34: 7 | P34: 8 | Q34: 9 | R34: 10
A35: 1 | B35: N/A | C35: N/A | D35: =UserInput!$B$21*UserInput!$B$5 -> 9.993280567 | E35: =UserInput!B8-D35 -> 1007.882739 | F35: 0 | G35: =-E35*C19 -> -3426.801313 | H35: =D19*UserInput!$B$21 -> -59.9596834 | I35: =E19*UserInput!$B$21 -> -59.9596834 | J35: =F19*UserInput!$B$21 -> -59.9596834 | K35: =G19*UserInput!$B$21 -> -59.9596834 | L35: =H19*UserInput!$B$21 -> -59.9596834 | M35: =I19*UserInput!$B$21 -> -59.9596834 | N35: =J19*UserInput!$B$21 -> -59.9596834 | O35: =K19*UserInput!$B$21 -> -59.9596834 | P35: =L19*UserInput!$B$21 -> -59.9596834 | Q35: =M19*UserInput!$B$21 -> -59.9596834 | R35: =N19*UserInput!$B$21 -> -59.9596834
A36: =A35+1 -> 2 | B36: =B20 -> 31.72945187 | C36: =B36*UserInput!$B$14 -> 26.97003409 | D36: =UserInput!$B$21*COUNTIF(Coordinates!$G$3:$G$103,">"&UserInput!$B$3-'Calculations Circular'!C36-UserInput!$B$3/2) -> 7.994624454 | E36: =(UserInput!$B$3/2)^2*ACOS(((UserInput!$B$3/2)-C36)/(UserInput!$B$3/2))-((UserInput!$B$3/2)-C36)*SQRT(2*(UserInput!$B$3/2)*C36-C36^2) -> 817.9453663 | F36: =2*(2*(UserInput!$B$3/2)*C36-C36^2)^(3/2)/(3*E36) -> 3.097675022 | G36: -2781.014245 | H36: =D20*UserInput!$B$21 -> 0 | I36: =E20*UserInput!$B$21 -> 0 | J36: =F20*UserInput!$B$21 -> -14.36953392 | K36: =G20*UserInput!$B$21 -> -37.61992822 | L36: =H20*UserInput!$B$21 -> -59.9596834 | M36: =I20*UserInput!$B$21 -> -59.9596834 | N36: =J20*UserInput!$B$21 -> -59.9596834 | O36: =K20*UserInput!$B$21 -> -59.9596834 | P36: =L20*UserInput!$B$21 -> -37.61992822 | Q36: =M20*UserInput!$B$21 -> -14.36953392 | R36: =N20*UserInput!$B$21 -> 0
A37: 3 | B37: 27.06335601 | C37: =B37*UserInput!$B$14 -> 23.00385261 | D37: =UserInput!$B$21*COUNTIF(Coordinates!$G$3:$G$103,">"&UserInput!$B$3-'Calculations Circular'!C37-UserInput!$B$3/2) -> 5.99596834 | E37: =(UserInput!$B$3/2)^2*ACOS(((UserInput!$B$3/2)-C37)/(UserInput!$B$3/2))-((UserInput!$B$3/2)-C37)*SQRT(2*(UserInput!$B$3/2)*C37-C37^2) -> 686.7288672 | F37: =2*(2*(UserInput!$B$3/2)*C37-C37^2)^(3/2)/(3*E37) -> 5.018180101 | G37: -2334.878148 | H37: =D21*UserInput!$B$21 -> 14.98992085 | I37: =E21*UserInput!$B$21 -> 14.98992085 | J37: =F21*UserInput!$B$21 -> -1.857118923 | K37: =G21*UserInput!$B$21 -> -29.11620189 | L37: =H21*UserInput!$B$21 -> -56.37528485 | M37: =I21*UserInput!$B$21 -> -59.9596834 | N37: =J21*UserInput!$B$21 -> -59.9596834 | O37: =K21*UserInput!$B$21 -> -56.37528485 | P37: =L21*UserInput!$B$21 -> -29.11620189 | Q37: =M21*UserInput!$B$21 -> -1.857118923 | R37: =N21*UserInput!$B$21 -> 14.98992085
A38: 4 | B38: 23.59369498 | C38: =B38*UserInput!$B$14 -> 20.05464073 | D38: =UserInput!$B$21*COUNTIF(Coordinates!$G$3:$G$103,">"&UserInput!$B$3-'Calculations Circular'!C38-UserInput!$B$3/2) -> 5.99596834 | E38: =(UserInput!$B$3/2)^2*ACOS(((UserInput!$B$3/2)-C38)/(UserInput!$B$3/2))-((UserInput!$B$3/2)-C38)*SQRT(2*(UserInput!$B$3/2)*C38-C38^2) -> 582.7441356 | F38: =2*(2*(UserInput!$B$3/2)*C38-C38^2)^(3/2)/(3*E38) -> 6.541910856 | G38: -1981.330061 | H38: =D22*UserInput!$B$21 -> 29.9798417 | I38: =E22*UserInput!$B$21 -> 29.9798417 | J38: =F22*UserInput!$B$21 -> 10.65529608 | K38: =G22*UserInput!$B$21 -> -20.61247556 | L38: =H22*UserInput!$B$21 -> -51.88024719 | M38: =I22*UserInput!$B$21 -> -59.9596834 | N38: =J22*UserInput!$B$21 -> -59.9596834 | O38: =K22*UserInput!$B$21 -> -51.88024719 | P38: =L22*UserInput!$B$21 -> -20.61247556 | Q38: =M22*UserInput!$B$21 -> 10.65529608 | R38: =N22*UserInput!$B$21 -> 29.9798417
A39: 5 | B39: 20.91259328 | C39: =B39*UserInput!$B$14 -> 17.77570429 | D39: =UserInput!$B$21*COUNTIF(Coordinates!$G$3:$G$103,">"&UserInput!$B$3-'Calculations Circular'!C39-UserInput!$B$3/2) -> 3.997312227 | E39: =(UserInput!$B$3/2)^2*ACOS(((UserInput!$B$3/2)-C39)/(UserInput!$B$3/2))-((UserInput!$B$3/2)-C39)*SQRT(2*(UserInput!$B$3/2)*C39-C39^2) -> 500.8635731 | F39: =2*(2*(UserInput!$B$3/2)*C39-C39^2)^(3/2)/(3*E39) -> 7.760784951 | G39: -1702.936149 | H39: =D23*UserInput!$B$21 -> 44.96976255 | I39: =E23*UserInput!$B$21 -> 44.96976255 | J39: =F23*UserInput!$B$21 -> 23.16771108 | K39: =G23*UserInput!$B$21 -> -12.10874923 | L39: =H23*UserInput!$B$21 -> -47.38520953 | M39: =I23*UserInput!$B$21 -> -59.9596834 | N39: =J23*UserInput!$B$21 -> -59.9596834 | O39: =K23*UserInput!$B$21 -> -47.38520953 | P39: =L23*UserInput!$B$21 -> -12.10874923 | Q39: =M23*UserInput!$B$21 -> 23.16771108 | R39: =N23*UserInput!$B$21 -> 44.96976255
A40: 6 | B40: 18.77865519 | C40: =B40*UserInput!$B$14 -> 15.96185691 | D40: =UserInput!$B$21*COUNTIF(Coordinates!$G$3:$G$103,">"&UserInput!$B$3-'Calculations Circular'!C40-UserInput!$B$3/2) -> 3.997312227 | E40: =(UserInput!$B$3/2)^2*ACOS(((UserInput!$B$3/2)-C40)/(UserInput!$B$3/2))-((UserInput!$B$3/2)-C40)*SQRT(2*(UserInput!$B$3/2)*C40-C40^2) -> 435.7219486 | F40: =2*(2*(UserInput!$B$3/2)*C40-C40^2)^(3/2)/(3*E40) -> 8.752067005 | G40: -1481.454625 | H40: =D24*UserInput!$B$21 -> 59.9596834 | I40: =E24*UserInput!$B$21 -> 59.9596834 | J40: =F24*UserInput!$B$21 -> 35.68012608 | K40: =G24*UserInput!$B$21 -> -3.605022895 | L40: =H24*UserInput!$B$21 -> -42.89017187 | M40: =I24*UserInput!$B$21 -> -59.9596834 | N40: =J24*UserInput!$B$21 -> -59.9596834 | O40: =K24*UserInput!$B$21 -> -42.89017187 | P40: =L24*UserInput!$B$21 -> -3.605022895 | Q40: =M24*UserInput!$B$21 -> 35.68012608 | R40: =N24*UserInput!$B$21 -> 59.9596834
A41: 7 | B41: 13.33556673 | C41: =B41*UserInput!$B$14 -> 11.33523172 | D41: =UserInput!$B$21*COUNTIF(Coordinates!$G$3:$G$103,">"&UserInput!$B$3-'Calculations Circular'!C41-UserInput!$B$3/2) -> 3.997312227 | E41: =(UserInput!$B$3/2)^2*ACOS(((UserInput!$B$3/2)-C41)/(UserInput!$B$3/2))-((UserInput!$B$3/2)-C41)*SQRT(2*(UserInput!$B$3/2)*C41-C41^2) -> 274.6072937 | F41: =2*(2*(UserInput!$B$3/2)*C41-C41^2)^(3/2)/(3*E41) -> 11.34900628 | G41: -933.6647986 | H41: =D25*UserInput!$B$21 -> 59.9596834 | I41: =E25*UserInput!$B$21 -> 59.9596834 | J41: =F25*UserInput!$B$21 -> 59.9596834 | K41: =G25*UserInput!$B$21 -> 30.40988243 | L41: =H25*UserInput!$B$21 -> -24.91002124 | M41: =I25*UserInput!$B$21 -> -59.09960195 | N41: =J25*UserInput!$B$21 -> -59.09960195 | O41: =K25*UserInput!$B$21 -> -24.91002124 | P41: =L25*UserInput!$B$21 -> 30.40988243 | Q41: =M25*UserInput!$B$21 -> 59.9596834 | R41: =N25*UserInput!$B$21 -> 59.9596834
A42: 8 | B42: 10.33881016 | C42: =B42*UserInput!$B$14 -> 8.787988636 | D42: =UserInput!$B$21*COUNTIF(Coordinates!$G$3:$G$103,">"&UserInput!$B$3-'Calculations Circular'!C42-UserInput!$B$3/2) -> 1.998656113 | E42: =(UserInput!$B$3/2)^2*ACOS(((UserInput!$B$3/2)-C42)/(UserInput!$B$3/2))-((UserInput!$B$3/2)-C42)*SQRT(2*(UserInput!$B$3/2)*C42-C42^2) -> 192.4122555 | F42: =2*(2*(UserInput!$B$3/2)*C42-C42^2)^(3/2)/(3*E42) -> 12.8130112 | G42: -654.2016688 | H42: =D26*UserInput!$B$21 -> 59.9596834 | I42: =E26*UserInput!$B$21 -> 59.9596834 | J42: =F26*UserInput!$B$21 -> 59.9596834 | K42: =G26*UserInput!$B$21 -> 59.9596834 | L42: =H26*UserInput!$B$21 -> -6.929870598 | M42: =I26*UserInput!$B$21 -> -51.02947471 | N42: =J26*UserInput!$B$21 -> -51.02947471 | O42: =K26*UserInput!$B$21 -> -6.929870598 | P42: =L26*UserInput!$B$21 -> 59.9596834 | Q42: =M26*UserInput!$B$21 -> 59.9596834 | R42: =N26*UserInput!$B$21 -> 59.9596834
A43: 9 | B43: 8.441780773 | C43: =B43*UserInput!$B$14 -> 7.175513657 | D43: =UserInput!$B$21*COUNTIF(Coordinates!$G$3:$G$103,">"&UserInput!$B$3-'Calculations Circular'!C43-UserInput!$B$3/2) -> 1.998656113 | E43: =(UserInput!$B$3/2)^2*ACOS(((UserInput!$B$3/2)-C43)/(UserInput!$B$3/2))-((UserInput!$B$3/2)-C43)*SQRT(2*(UserInput!$B$3/2)*C43-C43^2) -> 144.2188942 | F43: =2*(2*(UserInput!$B$3/2)*C43-C43^2)^(3/2)/(3*E43) -> 13.75018173 | G43: -490.3442402 | H43: =D27*UserInput!$B$21 -> 59.9596834 | I43: =E27*UserInput!$B$21 -> 59.9596834 | J43: =F27*UserInput!$B$21 -> 59.9596834 | K43: =G27*UserInput!$B$21 -> 59.9596834 | L43: =H27*UserInput!$B$21 -> 11.05028004 | M43: =I27*UserInput!$B$21 -> -42.95934747 | N43: =J27*UserInput!$B$21 -> -42.95934747 | O43: =K27*UserInput!$B$21 -> 11.05028004 | P43: =L27*UserInput!$B$21 -> 59.9596834 | Q43: =M27*UserInput!$B$21 -> 59.9596834 | R43: =N27*UserInput!$B$21 -> 59.9596834
A44: 10 | B44: 6.175530901 | C44: =B44*UserInput!$B$14 -> 5.249201266 | D44: =UserInput!$B$21*COUNTIF(Coordinates!$G$3:$G$103,">"&UserInput!$B$3-'Calculations Circular'!C44-UserInput!$B$3/2) -> 1.998656113 | E44: =(UserInput!$B$3/2)^2*ACOS(((UserInput!$B$3/2)-C44)/(UserInput!$B$3/2))-((UserInput!$B$3/2)-C44)*SQRT(2*(UserInput!$B$3/2)*C44-C44^2) -> 91.88718389 | F44: =2*(2*(UserInput!$B$3/2)*C44-C44^2)^(3/2)/(3*E44) -> 14.87915397 | G44: -312.4164252 | H44: =D28*UserInput!$B$21 -> 59.9596834 | I44: =E28*UserInput!$B$21 -> 59.9596834 | J44: =F28*UserInput!$B$21 -> 59.9596834 | K44: =G28*UserInput!$B$21 -> 59.9596834 | L44: =H28*UserInput!$B$21 -> 47.01058132 | M44: =I28*UserInput!$B$21 -> -26.81909299 | N44: =J28*UserInput!$B$21 -> -26.81909299 | O44: =K28*UserInput!$B$21 -> 47.01058132 | P44: =L28*UserInput!$B$21 -> 59.9596834 | Q44: =M28*UserInput!$B$21 -> 59.9596834 | R44: =N28*UserInput!$B$21 -> 59.9596834
A45: 11 | B45: 4.868540234 | C45: =B45*UserInput!$B$14 -> 4.138259199 | D45: =UserInput!$B$21*COUNTIF(Coordinates!$G$3:$G$103,">"&UserInput!$B$3-'Calculations Circular'!C45-UserInput!$B$3/2) -> 0 | E45: =(UserInput!$B$3/2)^2*ACOS(((UserInput!$B$3/2)-C45)/(UserInput!$B$3/2))-((UserInput!$B$3/2)-C45)*SQRT(2*(UserInput!$B$3/2)*C45-C45^2) -> 64.97430634 | F45: =2*(2*(UserInput!$B$3/2)*C45-C45^2)^(3/2)/(3*E45) -> 15.53452124 | G45: -220.9126415 | H45: =D29*UserInput!$B$21 -> 59.9596834 | I45: =E29*UserInput!$B$21 -> 59.9596834 | J45: =F29*UserInput!$B$21 -> 59.9596834 | K45: =G29*UserInput!$B$21 -> 59.9596834 | L45: =H29*UserInput!$B$21 -> 59.9596834 | M45: =I29*UserInput!$B$21 -> -10.67883851 | N45: =J29*UserInput!$B$21 -> -10.67883851 | O45: =K29*UserInput!$B$21 -> 59.9596834 | P45: =L29*UserInput!$B$21 -> 59.9596834 | Q45: =M29*UserInput!$B$21 -> 59.9596834 | R45: =N29*UserInput!$B$21 -> 59.9596834
A46: 12 | B46: 4.018140193 | C46: =B46*UserInput!$B$14 -> 3.415419164 | D46: =UserInput!$B$21*COUNTIF(Coordinates!$G$3:$G$103,">"&UserInput!$B$3-'Calculations Circular'!C46-UserInput!$B$3/2) -> 0 | E46: =(UserInput!$B$3/2)^2*ACOS(((UserInput!$B$3/2)-C46)/(UserInput!$B$3/2))-((UserInput!$B$3/2)-C46)*SQRT(2*(UserInput!$B$3/2)*C46-C46^2) -> 49.03338858 | F46: =2*(2*(UserInput!$B$3/2)*C46-C46^2)^(3/2)/(3*E46) -> 15.96250543 | G46: -166.7135212 | H46: =D30*UserInput!$B$21 -> 59.9596834 | I46: =E30*UserInput!$B$21 -> 59.9596834 | J46: =F30*UserInput!$B$21 -> 59.9596834 | K46: =G30*UserInput!$B$21 -> 59.9596834 | L46: =H30*UserInput!$B$21 -> 59.9596834 | M46: =I30*UserInput!$B$21 -> 5.461415977 | N46: =J30*UserInput!$B$21 -> 5.461415977 | O46: =K30*UserInput!$B$21 -> 59.9596834 | P46: =L30*UserInput!$B$21 -> 59.9596834 | Q46: =M30*UserInput!$B$21 -> 59.9596834 | R46: =N30*UserInput!$B$21 -> 59.9596834
A47: 13 | B47: N/A | C47: N/A | D47: =UserInput!$B$21*COUNTIF(Coordinates!$G$3:$G$103,">"&UserInput!$B$3-'Calculations Circular'!C47-UserInput!$B$3/2) -> 0 | E47: 0 | F47: 0 | G47: 0 | H47: =D31*UserInput!$B$21 -> 59.9596834 | I47: =E31*UserInput!$B$21 -> 59.9596834 | J47: =F31*UserInput!$B$21 -> 59.9596834 | K47: =G31*UserInput!$B$21 -> 59.9596834 | L47: =H31*UserInput!$B$21 -> 59.9596834 | M47: =I31*UserInput!$B$21 -> 59.9596834 | N47: =J31*UserInput!$B$21 -> 59.9596834 | O47: =K31*UserInput!$B$21 -> 59.9596834 | P47: =L31*UserInput!$B$21 -> 59.9596834 | Q47: =M31*UserInput!$B$21 -> 59.9596834 | R47: =N31*UserInput!$B$21 -> 59.9596834
A49: Results | G49: Factored Results | M49: Ecc. Factor | N49: =IF(UserInput!B13="Spirals",0.85,IF(UserInput!B13="Ties",0.8,"Error")) -> 0.85
A50: Point No. | B50: P (kip) | C50: M (kip*ft) | D50: φ (1/in) | E50: εs desc | G50: Tens. Strain εt | H50: φ | I50: φPn (kip) | J50: φMn (kip*ft) | M50: fy | N50: =UserInput!B18 -> 60
A51: 1 | B51: 4026.398147 | C51: 5.684341886e-14 | D51: N/A | E51: compression | G51: =INDEX($E$3:$BB$15,A51,$N$53) -> -0.003 | H51: =IF(G51<=$N$51,0.75,IF(G51>=$N$52,0.9,(G51-$N$51)/($N$52-$N$51)*(0.9-0.75)+0.75)) -> 0.75 | I51: =H51*N49*B51 -> 2566.828819 | J51: =H51*C51 -> 4.263256415e-14 | M51: Comp Ctrl Strain εcl | N51: =IF(N50<=60,MIN(0.002,N50/UserInput!B19),(N50-60)/(100-60)*(0.004-0.002)+0.002) -> 0.002
A52: =A51+1 -> 2 | B52: 3124.831903 | C52: 919.5662335 | D52: 9.454937966e-05 | E52: 0εsy | G52: =INDEX($E$3:$BB$15,A52,$N$53) -> 0 | H52: =IF(G52<=$N$51,0.75,IF(G52>=$N$52,0.9,(G52-$N$51)/($N$52-$N$51)*(0.9-0.75)+0.75)) -> 0.75 | I52: =MIN($I$51,H52*B52) -> 2343.623927 | J52: =H52*C52 -> 689.6746751 | M52: Tens Ctrl Strain εtl | N52: =IF(N50<=75,0.005,(N50-75)/(100-75)*(0.008-0.005)+0.005) -> 0.005
A53: 3 | B53: 2599.514885 | C53: 1225.006293 | D53: 0.0001108509967 | E53: 0.25 | G53: 0.0005172413793 | H53: 0.75 | I53: =MIN($I$51,H53*B53) -> 1949.636164 | J53: 918.7547199 | M53: Bar No max tens | N53: =MATCH(MAX(E8:BB8),E8:BB8,0) -> 1
A54: 4 | B54: 2164.964598 | C54: 1374.382256 | D54: 0.0001271526137 | E54: =E53+0.25 -> 0.5 | G54: 0.001034482759 | H54: 0.75 | I54: 1623.723448 | J54: 1030.786692
A55: 5 | B55: 1805.568486 | C55: 1441.224138 | D55: 0.0001434542306 | E55: =E54+0.25 -> 0.75 | G55: 0.001551724138 | H55: 0.75 | I55: 1354.176364 | J55: 1080.918104
A56: 6 | B56: 1503.084763 | C56: 1466.002046 | D56: 0.0001597558475 | E56: =E55+0.25 -> 1 | G56: 0.002068965517 | H56: 0.7534482759 | I56: 1132.496623 | J56: 1104.556714
A57: 7 | B57: 801.0255465 | C57: 1275.474123 | D57: 0.000224962314 | E57: =E56+1 -> 2 | G57: 0.004137931034 | H57: 0.8568965517 | I57: 686.3960286 | J57: 1092.949378
A58: 8 | B58: 410.362259 | C58: 1047.090457 | D58: 0.0002901687786 | E58: =E57+1 -> 3 | G58: 0.006206896552 | H58: 0.9 | I58: 369.3260331 | J58: 942.3814117
A59: 9 | B59: 194.4042746 | C59: 866.5320795 | D59: 0.0003553752407 | E59: =E58+1 -> 4 | G59: 0.008275862069 | H59: 0.9 | I59: 174.9638471 | J59: 779.8788716
A60: 10 | B60: -87.72465186 | C60: 604.2579467 | D60: 0.0004857881553 | E60: =E59+2 -> 6 | G60: 0.0124137931 | H60: 0.9 | I60: -78.95218667 | J60: 543.832152
A61: 11 | B61: -237.4071487 | C61: 447.6190414 | D61: 0.0006162010533 | E61: =E60+2 -> 8 | G61: 0.01655172414 | H61: 0.9 | I61: -213.6664338 | J61: 402.8571372
A62: 12 | B62: -323.886778 | C62: 346.4690138 | D62: 0.0007466139304 | E62: =E61+2 -> 10 | G62: 0.02068965517 | H62: 0.9 | I62: -291.4981002 | J62: 311.8221125
A63: 13 | B63: -599.596834 | C63: -5.684341886e-14 | D63: N/A | E63: tension | G63: =INDEX($E$3:$BB$15,A63,$N$53) -> 0.002068965517 | H63: 0.9 | I63: -539.6371506 | J63: =H63*C63 -> -5.115907697e-14

Sheet Calculations Rectangular (hidden)
A1: Strains | E1: εsbars | I1: Bars on Top | J1: =UserInput!$B$5-J2 -> 5
A2: εsmax description | B2: c | C2: εc | D2: εsmax | E2: top | F2: bot | I2: Bars on Bot | J2: =INT(UserInput!$B$5/2+0.5) -> 5
A3: compression | B3: N/A | C3: =-UserInput!$B$12 -> -0.003 | D3: -0.003 | E3: -0.003 | F3: =D3 -> -0.003 | I3: A bar | J3: =UserInput!B21 -> 0.9993280567
A4: 0εsy | B4: =(UserInput!$B$3-UserInput!$B$7-UserInput!$B$20/2)*(-C4/(D4-C4)) -> 32.436 | C4: =-UserInput!$B$12 -> -0.003 | D4: 0 | E4: =(B4-UserInput!$B$7-UserInput!$B$20/2)/B4*C4 -> -0.00267036626 | F4: =D4 -> 0
A5: 0.25 | B5: =(UserInput!$B$3-UserInput!$B$7-UserInput!$B$20/2)*(-C5/(D5-C5)) -> 27.666 | C5: =-UserInput!$B$12 -> -0.003 | D5: =A5*UserInput!$B$18/UserInput!$B$19 -> 0.0005172413793 | E5: =(B5-UserInput!$B$7-UserInput!$B$20/2)/B5*C5 -> -0.002613532856 | F5: 0.0005172413793
A6: =A5+0.25 -> 0.5 | B6: =(UserInput!$B$3-UserInput!$B$7-UserInput!$B$20/2)*(-C6/(D6-C6)) -> 24.11907692 | C6: =-UserInput!$B$12 -> -0.003 | D6: =A6*UserInput!$B$18/UserInput!$B$19 -> 0.001034482759 | E6: =(B6-UserInput!$B$7-UserInput!$B$20/2)/B6*C6 -> -0.002556699453 | F6: 0.001034482759
A7: =A6+0.25 -> 0.75 | B7: =(UserInput!$B$3-UserInput!$B$7-UserInput!$B$20/2)*(-C7/(D7-C7)) -> 21.37827273 | C7: =-UserInput!$B$12 -> -0.003 | D7: =A7*UserInput!$B$18/UserInput!$B$19 -> 0.001551724138 | E7: =(B7-UserInput!$B$7-UserInput!$B$20/2)/B7*C7 -> -0.002499866049 | F7: 0.001551724138
A8: =A7+0.25 -> 1 | B8: =(UserInput!$B$3-UserInput!$B$7-UserInput!$B$20/2)*(-C8/(D8-C8)) -> 19.19681633 | C8: =-UserInput!$B$12 -> -0.003 | D8: =A8*UserInput!$B$18/UserInput!$B$19 -> 0.002068965517 | E8: =(B8-UserInput!$B$7-UserInput!$B$20/2)/B8*C8 -> -0.002443032646 | F8: 0.002068965517
A9: =A8+1 -> 2 | B9: =(UserInput!$B$3-UserInput!$B$7-UserInput!$B$20/2)*(-C9/(D9-C9)) -> 13.63252174 | C9: =-UserInput!$B$12 -> -0.003 | D9: =A9*UserInput!$B$18/UserInput!$B$19 -> 0.004137931034 | E9: =(B9-UserInput!$B$7-UserInput!$B$20/2)/B9*C9 -> -0.002215699032 | F9: 0.004137931034
A10: =A9+1 -> 3 | B10: =(UserInput!$B$3-UserInput!$B$7-UserInput!$B$20/2)*(-C10/(D10-C10)) -> 10.56903371 | C10: =-UserInput!$B$12 -> -0.003 | D10: =A10*UserInput!$B$18/UserInput!$B$19 -> 0.006206896552 | E10: =(B10-UserInput!$B$7-UserInput!$B$20/2)/B10*C10 -> -0.001988365418 | F10: 0.006206896552
A11: =A10+1 -> 4 | B11: =(UserInput!$B$3-UserInput!$B$7-UserInput!$B$20/2)*(-C11/(D11-C11)) -> 8.629761468 | C11: =-UserInput!$B$12 -> -0.003 | D11: =A11*UserInput!$B$18/UserInput!$B$19 -> 0.008275862069 | E11: =(B11-UserInput!$B$7-UserInput!$B$20/2)/B11*C11 -> -0.001761031804 | F11: 0.008275862069
A12: =A11+2 -> 6 | B12: =(UserInput!$B$3-UserInput!$B$7-UserInput!$B$20/2)*(-C12/(D12-C12)) -> 6.31304698 | C12: =-UserInput!$B$12 -> -0.003 | D12: =A12*UserInput!$B$18/UserInput!$B$19 -> 0.0124137931 | E12: =(B12-UserInput!$B$7-UserInput!$B$20/2)/B12*C12 -> -0.001306364576 | F12: 0.0124137931
A13: =A12+2 -> 8 | B13: =(UserInput!$B$3-UserInput!$B$7-UserInput!$B$20/2)*(-C13/(D13-C13)) -> 4.976952381 | C13: =-UserInput!$B$12 -> -0.003 | D13: =A13*UserInput!$B$18/UserInput!$B$19 -> 0.01655172414 | E13: =(B13-UserInput!$B$7-UserInput!$B$20/2)/B13*C13 -> -0.0008516973478 | F13: 0.01655172414
A14: =A13+2 -> 10 | B14: =(UserInput!$B$3-UserInput!$B$7-UserInput!$B$20/2)*(-C14/(D14-C14)) -> 4.107615721 | C14: =-UserInput!$B$12 -> -0.003 | D14: =A14*UserInput!$B$18/UserInput!$B$19 -> 0.02068965517 | E14: =(B14-UserInput!$B$7-UserInput!$B$20/2)/B14*C14 -> -0.0003970301198 | F14: 0.02068965517
A15: tension | B15: N/A | C15: =-UserInput!$B$12 -> -0.003 | D15: 0.002068965517 | E15: =D15 -> 0.002068965517 | F15: 0.002068965517
A17: Stresses (ksi)
A18: Point No. | B18: c | C18: fc | D18: fsmax | E18: top | F18: bot
A19: 1 | B19: N/A | C19: =0.85*UserInput!$B$11 -> 3.4 | D19: =IF(D3<-UserInput!$B$18/UserInput!$B$19,-UserInput!$B$18,IF(D3>UserInput!$B$18/UserInput!$B$19,UserInput!$B$18,'Calculations Rectangular'!D3*UserInput!$B$19)) -> -60 | E19: =IF(E3<-UserInput!$B$18/UserInput!$B$19,-UserInput!$B$18,IF(E3>UserInput!$B$18/UserInput!$B$19,UserInput!$B$18,'Calculations Rectangular'!E3*UserInput!$B$19)) -> -60 | F19: =IF(F3<-UserInput!$B$18/UserInput!$B$19,-UserInput!$B$18,IF(F3>UserInput!$B$18/UserInput!$B$19,UserInput!$B$18,'Calculations Rectangular'!F3*UserInput!$B$19)) -> -60
A20: =A19+1 -> 2 | B20: =B4 -> 32.436 | C20: =$C$19 -> 3.4 | D20: =IF(D4<-UserInput!$B$18/UserInput!$B$19,-UserInput!$B$18,IF(D4>UserInput!$B$18/UserInput!$B$19,UserInput!$B$18,'Calculations Rectangular'!D4*UserInput!$B$19)) -> 0 | E20: =IF(E4<-UserInput!$B$18/UserInput!$B$19,-UserInput!$B$18,IF(E4>UserInput!$B$18/UserInput!$B$19,UserInput!$B$18,'Calculations Rectangular'!E4*UserInput!$B$19)) -> -60 | F20: =IF(F4<-UserInput!$B$18/UserInput!$B$19,-UserInput!$B$18,IF(F4>UserInput!$B$18/UserInput!$B$19,UserInput!$B$18,'Calculations Rectangular'!F4*UserInput!$B$19)) -> 0
A21: 3 | B21: 27.666 | C21: =$C$19 -> 3.4 | D21: =IF(D5<-UserInput!$B$18/UserInput!$B$19,-UserInput!$B$18,IF(D5>UserInput!$B$18/UserInput!$B$19,UserInput!$B$18,'Calculations Rectangular'!D5*UserInput!$B$19)) -> 15 | E21: =IF(E5<-UserInput!$B$18/UserInput!$B$19,-UserInput!$B$18,IF(E5>UserInput!$B$18/UserInput!$B$19,UserInput!$B$18,'Calculations Rectangular'!E5*UserInput!$B$19)) -> -60 | F21: =IF(F5<-UserInput!$B$18/UserInput!$B$19,-UserInput!$B$18,IF(F5>UserInput!$B$18/UserInput!$B$19,UserInput!$B$18,'Calculations Rectangular'!F5*UserInput!$B$19)) -> 15
A22: 4 | B22: 24.11907692 | C22: 3.4 | D22: =IF(D6<-UserInput!$B$18/UserInput!$B$19,-UserInput!$B$18,IF(D6>UserInput!$B$18/UserInput!$B$19,UserInput!$B$18,'Calculations Rectangular'!D6*UserInput!$B$19)) -> 30 | E22: =IF(E6<-UserInput!$B$18/UserInput!$B$19,-UserInput!$B$18,IF(E6>UserInput!$B$18/UserInput!$B$19,UserInput!$B$18,'Calculations Rectangular'!E6*UserInput!$B$19)) -> -60 | F22: =IF(F6<-UserInput!$B$18/UserInput!$B$19,-UserInput!$B$18,IF(F6>UserInput!$B$18/UserInput!$B$19,UserInput!$B$18,'Calculations Rectangular'!F6*UserInput!$B$19)) -> 30
A23: 5 | B23: 21.37827273 | C23: 3.4 | D23: =IF(D7<-UserInput!$B$18/UserInput!$B$19,-UserInput!$B$18,IF(D7>UserInput!$B$18/UserInput!$B$19,UserInput!$B$18,'Calculations Rectangular'!D7*UserInput!$B$19)) -> 45 | E23: =IF(E7<-UserInput!$B$18/UserInput!$B$19,-UserInput!$B$18,IF(E7>UserInput!$B$18/UserInput!$B$19,UserInput!$B$18,'Calculations Rectangular'!E7*UserInput!$B$19)) -> -60 | F23: =IF(F7<-UserInput!$B$18/UserInput!$B$19,-UserInput!$B$18,IF(F7>UserInput!$B$18/UserInput!$B$19,UserInput!$B$18,'Calculations Rectangular'!F7*UserInput!$B$19)) -> 45
A24: 6 | B24: 19.19681633 | C24: 3.4 | D24: =IF(D8<-UserInput!$B$18/UserInput!$B$19,-UserInput!$B$18,IF(D8>UserInput!$B$18/UserInput!$B$19,UserInput!$B$18,'Calculations Rectangular'!D8*UserInput!$B$19)) -> 60 | E24: =IF(E8<-UserInput!$B$18/UserInput!$B$19,-UserInput!$B$18,IF(E8>UserInput!$B$18/UserInput!$B$19,UserInput!$B$18,'Calculations Rectangular'!E8*UserInput!$B$19)) -> -60 | F24: =IF(F8<-UserInput!$B$18/UserInput!$B$19,-UserInput!$B$18,IF(F8>UserInput!$B$18/UserInput!$B$19,UserInput!$B$18,'Calculations Rectangular'!F8*UserInput!$B$19)) -> 60
A25: 7 | B25: 13.63252174 | C25: 3.4 | D25: =IF(D9<-UserInput!$B$18/UserInput!$B$19,-UserInput!$B$18,IF(D9>UserInput!$B$18/UserInput!$B$19,UserInput!$B$18,'Calculations Rectangular'!D9*UserInput!$B$19)) -> 60 | E25: =IF(E9<-UserInput!$B$18/UserInput!$B$19,-UserInput!$B$18,IF(E9>UserInput!$B$18/UserInput!$B$19,UserInput!$B$18,'Calculations Rectangular'!E9*UserInput!$B$19)) -> -60 | F25: =IF(F9<-UserInput!$B$18/UserInput!$B$19,-UserInput!$B$18,IF(F9>UserInput!$B$18/UserInput!$B$19,UserInput!$B$18,'Calculations Rectangular'!F9*UserInput!$B$19)) -> 60
A26: 8 | B26: 10.56903371 | C26: 3.4 | D26: =IF(D10<-UserInput!$B$18/UserInput!$B$19,-UserInput!$B$18,IF(D10>UserInput!$B$18/UserInput!$B$19,UserInput!$B$18,'Calculations Rectangular'!D10*UserInput!$B$19)) -> 60 | E26: =IF(E10<-UserInput!$B$18/UserInput!$B$19,-UserInput!$B$18,IF(E10>UserInput!$B$18/UserInput!$B$19,UserInput!$B$18,'Calculations Rectangular'!E10*UserInput!$B$19)) -> -57.66259711 | F26: =IF(F10<-UserInput!$B$18/UserInput!$B$19,-UserInput!$B$18,IF(F10>UserInput!$B$18/UserInput!$B$19,UserInput!$B$18,'Calculations Rectangular'!F10*UserInput!$B$19)) -> 60
A27: 9 | B27: 8.629761468 | C27: 3.4 | D27: =IF(D11<-UserInput!$B$18/UserInput!$B$19,-UserInput!$B$18,IF(D11>UserInput!$B$18/UserInput!$B$19,UserInput!$B$18,'Calculations Rectangular'!D11*UserInput!$B$19)) -> 60 | E27: =IF(E11<-UserInput!$B$18/UserInput!$B$19,-UserInput!$B$18,IF(E11>UserInput!$B$18/UserInput!$B$19,UserInput!$B$18,'Calculations Rectangular'!E11*UserInput!$B$19)) -> -51.06992231 | F27: =IF(F11<-UserInput!$B$18/UserInput!$B$19,-UserInput!$B$18,IF(F11>UserInput!$B$18/UserInput!$B$19,UserInput!$B$18,'Calculations Rectangular'!F11*UserInput!$B$19)) -> 60
A28: 10 | B28: 6.31304698 | C28: 3.4 | D28: =IF(D12<-UserInput!$B$18/UserInput!$B$19,-UserInput!$B$18,IF(D12>UserInput!$B$18/UserInput!$B$19,UserInput!$B$18,'Calculations Rectangular'!D12*UserInput!$B$19)) -> 60 | E28: =IF(E12<-UserInput!$B$18/UserInput!$B$19,-UserInput!$B$18,IF(E12>UserInput!$B$18/UserInput!$B$19,UserInput!$B$18,'Calculations Rectangular'!E12*UserInput!$B$19)) -> -37.8845727 | F28: =IF(F12<-UserInput!$B$18/UserInput!$B$19,-UserInput!$B$18,IF(F12>UserInput!$B$18/UserInput!$B$19,UserInput!$B$18,'Calculations Rectangular'!F12*UserInput!$B$19)) -> 60
A29: 11 | B29: 4.976952381 | C29: 3.4 | D29: =IF(D13<-UserInput!$B$18/UserInput!$B$19,-UserInput!$B$18,IF(D13>UserInput!$B$18/UserInput!$B$19,UserInput!$B$18,'Calculations Rectangular'!D13*UserInput!$B$19)) -> 60 | E29: =IF(E13<-UserInput!$B$18/UserInput!$B$19,-UserInput!$B$18,IF(E13>UserInput!$B$18/UserInput!$B$19,UserInput!$B$18,'Calculations Rectangular'!E13*UserInput!$B$19)) -> -24.69922309 | F29: =IF(F13<-UserInput!$B$18/UserInput!$B$19,-UserInput!$B$18,IF(F13>UserInput!$B$18/UserInput!$B$19,UserInput!$B$18,'Calculations Rectangular'!F13*UserInput!$B$19)) -> 60
A30: 12 | B30: 4.107615721 | C30: 3.4 | D30: =IF(D14<-UserInput!$B$18/UserInput!$B$19,-UserInput!$B$18,IF(D14>UserInput!$B$18/UserInput!$B$19,UserInput!$B$18,'Calculations Rectangular'!D14*UserInput!$B$19)) -> 60 | E30: =IF(E14<-UserInput!$B$18/UserInput!$B$19,-UserInput!$B$18,IF(E14>UserInput!$B$18/UserInput!$B$19,UserInput!$B$18,'Calculations Rectangular'!E14*UserInput!$B$19)) -> -11.51387347 | F30: =IF(F14<-UserInput!$B$18/UserInput!$B$19,-UserInput!$B$18,IF(F14>UserInput!$B$18/UserInput!$B$19,UserInput!$B$18,'Calculations Rectangular'!F14*UserInput!$B$19)) -> 60
A31: 13 | B31: N/A | C31: 3.4 | D31: =IF(D15<-UserInput!$B$18/UserInput!$B$19,-UserInput!$B$18,IF(D15>UserInput!$B$18/UserInput!$B$19,UserInput!$B$18,'Calculations Rectangular'!D15*UserInput!$B$19)) -> 60 | E31: =IF(E15<-UserInput!$B$18/UserInput!$B$19,-UserInput!$B$18,IF(E15>UserInput!$B$18/UserInput!$B$19,UserInput!$B$18,'Calculations Rectangular'!E15*UserInput!$B$19)) -> 60 | F31: =IF(F15<-UserInput!$B$18/UserInput!$B$19,-UserInput!$B$18,IF(F15>UserInput!$B$18/UserInput!$B$19,UserInput!$B$18,'Calculations Rectangular'!F15*UserInput!$B$19)) -> 60
A33: Forces (kip)
A34: Point No. | B34: c | C34: a=β'c | D34: Ascomp | E34: Accomp | F34: C arm | G34: S_top arm | H34: S_bot arm | I34: C | J34: top | K34: bot
A35: 1 | B35: N/A | C35: N/A | D35: =UserInput!$B$21*UserInput!$B$5 -> 9.993280567 | E35: =UserInput!$B$15 -> 1007.882739 | F35: 0 | G35: 0 | H35: 0 | I35: =-E35*C19 -> -3426.801313 | J35: =E19*$J$1*$J$3 -> -299.798417 | K35: =F19*$J$2*$J$3 -> -299.798417
A36: =A35+1 -> 2 | B36: =B20 -> 32.436 | C36: =B36*UserInput!$B$14 -> 27.5706 | D36: =UserInput!$B$21*(IF(E20<0,$J$1,0)+IF(F20<0,$J$2,0)) -> 4.996640284 | E36: =C36*UserInput!$B$4-IF(J36<0,$J$1*$J$3)-IF(K36<0,$J$2*$J$3) -> 656.6977597 | F36: =UserInput!$B$3/2-C36/2 -> 4.2147 | G36: =UserInput!$B$3/2-UserInput!$B$7-UserInput!$B$20/2 -> 14.436 | H36: =UserInput!$B$3/2-UserInput!$B$7-UserInput!$B$20/2 -> 14.436 | I36: -2232.772383 | J36: -299.798417 | K36: 0
A37: 3 | B37: 27.666 | C37: =B37*UserInput!$B$14 -> 23.5161 | D37: =UserInput!$B$21*(IF(E21<0,$J$1,0)+IF(F21<0,$J$2,0)) -> 4.996640284 | E37: =C37*UserInput!$B$4-IF(J37<0,$J$1*$J$3)-IF(K37<0,$J$2*$J$3) -> 559.3897597 | F37: =UserInput!$B$3/2-C37/2 -> 6.24195 | G37: =UserInput!$B$3/2-UserInput!$B$7-UserInput!$B$20/2 -> 14.436 | H37: =UserInput!$B$3/2-UserInput!$B$7-UserInput!$B$20/2 -> 14.436 | I37: -1901.925183 | J37: -299.798417 | K37: 74.94960426
A38: 4 | B38: 24.11907692 | C38: =B38*UserInput!$B$14 -> 20.50121538 | D38: =UserInput!$B$21*(IF(E22<0,$J$1,0)+IF(F22<0,$J$2,0)) -> 4.996640284 | E38: =C38*UserInput!$B$4-IF(J38<0,$J$1*$J$3)-IF(K38<0,$J$2*$J$3) -> 487.0325289 | F38: =UserInput!$B$3/2-C38/2 -> 7.749392308 | G38: =UserInput!$B$3/2-UserInput!$B$7-UserInput!$B$20/2 -> 14.436 | H38: =UserInput!$B$3/2-UserInput!$B$7-UserInput!$B$20/2 -> 14.436 | I38: -1655.910598 | J38: -299.798417 | K38: 149.8992085
A39: 5 | B39: 21.37827273 | C39: =B39*UserInput!$B$14 -> 18.17153182 | D39: =UserInput!$B$21*(IF(E23<0,$J$1,0)+IF(F23<0,$J$2,0)) -> 4.996640284 | E39: =C39*UserInput!$B$4-IF(J39<0,$J$1*$J$3)-IF(K39<0,$J$2*$J$3) -> 431.1201234 | F39: =UserInput!$B$3/2-C39/2 -> 8.914234091 | G39: =UserInput!$B$3/2-UserInput!$B$7-UserInput!$B$20/2 -> 14.436 | H39: =UserInput!$B$3/2-UserInput!$B$7-UserInput!$B$20/2 -> 14.436 | I39: -1465.808419 | J39: -299.798417 | K39: 224.8488128
A40: 6 | B40: 19.19681633 | C40: =B40*UserInput!$B$14 -> 16.31729388 | D40: =UserInput!$B$21*(IF(E24<0,$J$1,0)+IF(F24<0,$J$2,0)) -> 4.996640284 | E40: =C40*UserInput!$B$4-IF(J40<0,$J$1*$J$3)-IF(K40<0,$J$2*$J$3) -> 386.6184128 | F40: =UserInput!$B$3/2-C40/2 -> 9.841353061 | G40: =UserInput!$B$3/2-UserInput!$B$7-UserInput!$B$20/2 -> 14.436 | H40: =UserInput!$B$3/2-UserInput!$B$7-UserInput!$B$20/2 -> 14.436 | I40: -1314.502603 | J40: -299.798417 | K40: 299.798417
A41: 7 | B41: 13.63252174 | C41: =B41*UserInput!$B$14 -> 11.58764348 | D41: =UserInput!$B$21*(IF(E25<0,$J$1,0)+IF(F25<0,$J$2,0)) -> 4.996640284 | E41: =C41*UserInput!$B$4-IF(J41<0,$J$1*$J$3)-IF(K41<0,$J$2*$J$3) -> 273.1068032 | F41: =UserInput!$B$3/2-C41/2 -> 12.20617826 | G41: =UserInput!$B$3/2-UserInput!$B$7-UserInput!$B$20/2 -> 14.436 | H41: =UserInput!$B$3/2-UserInput!$B$7-UserInput!$B$20/2 -> 14.436 | I41: -928.5631309 | J41: -299.798417 | K41: 299.798417
A42: 8 | B42: 10.56903371 | C42: =B42*UserInput!$B$14 -> 8.983678652 | D42: =UserInput!$B$21*(IF(E26<0,$J$1,0)+IF(F26<0,$J$2,0)) -> 4.996640284 | E42: =C42*UserInput!$B$4-IF(J42<0,$J$1*$J$3)-IF(K42<0,$J$2*$J$3) -> 210.6116474 | F42: =UserInput!$B$3/2-C42/2 -> 13.50816067 | G42: =UserInput!$B$3/2-UserInput!$B$7-UserInput!$B$20/2 -> 14.436 | H42: =UserInput!$B$3/2-UserInput!$B$7-UserInput!$B$20/2 -> 14.436 | I42: -716.079601 | J42: -288.1192556 | K42: 299.798417
A43: 9 | B43: 8.629761468 | C43: =B43*UserInput!$B$14 -> 7.335297248 | D43: =UserInput!$B$21*(IF(E27<0,$J$1,0)+IF(F27<0,$J$2,0)) -> 4.996640284 | E43: =C43*UserInput!$B$4-IF(J43<0,$J$1*$J$3)-IF(K43<0,$J$2*$J$3) -> 171.0504937 | F43: =UserInput!$B$3/2-C43/2 -> 14.33235138 | G43: =UserInput!$B$3/2-UserInput!$B$7-UserInput!$B$20/2 -> 14.436 | H43: =UserInput!$B$3/2-UserInput!$B$7-UserInput!$B$20/2 -> 14.436 | I43: -581.5716784 | J43: -255.1780311 | K43: 299.798417
A44: 10 | B44: 6.31304698 | C44: =B44*UserInput!$B$14 -> 5.366089933 | D44: =UserInput!$B$21*(IF(E28<0,$J$1,0)+IF(F28<0,$J$2,0)) -> 4.996640284 | E44: =C44*UserInput!$B$4-IF(J44<0,$J$1*$J$3)-IF(K44<0,$J$2*$J$3) -> 123.7895181 | F44: =UserInput!$B$3/2-C44/2 -> 15.31695503 | G44: =UserInput!$B$3/2-UserInput!$B$7-UserInput!$B$20/2 -> 14.436 | H44: =UserInput!$B$3/2-UserInput!$B$7-UserInput!$B$20/2 -> 14.436 | I44: -420.8843616 | J44: -189.2955821 | K44: 299.798417
A45: 11 | B45: 4.976952381 | C45: =B45*UserInput!$B$14 -> 4.230409524 | D45: =UserInput!$B$21*(IF(E29<0,$J$1,0)+IF(F29<0,$J$2,0)) -> 4.996640284 | E45: =C45*UserInput!$B$4-IF(J45<0,$J$1*$J$3)-IF(K45<0,$J$2*$J$3) -> 96.53318829 | F45: =UserInput!$B$3/2-C45/2 -> 15.88479524 | G45: =UserInput!$B$3/2-UserInput!$B$7-UserInput!$B$20/2 -> 14.436 | H45: =UserInput!$B$3/2-UserInput!$B$7-UserInput!$B$20/2 -> 14.436 | I45: -328.2128402 | J45: -123.413133 | K45: 299.798417
A46: 12 | B46: 4.107615721 | C46: =B46*UserInput!$B$14 -> 3.491473362 | D46: =UserInput!$B$21*(IF(E30<0,$J$1,0)+IF(F30<0,$J$2,0)) -> 4.996640284 | E46: =C46*UserInput!$B$4-IF(J46<0,$J$1*$J$3)-IF(K46<0,$J$2*$J$3) -> 78.79872042 | F46: =UserInput!$B$3/2-C46/2 -> 16.25426332 | G46: =UserInput!$B$3/2-UserInput!$B$7-UserInput!$B$20/2 -> 14.436 | H46: =UserInput!$B$3/2-UserInput!$B$7-UserInput!$B$20/2 -> 14.436 | I46: -267.9156494 | J46: -57.53068402 | K46: 299.798417
A47: 13 | B47: N/A | C47: N/A | D47: =UserInput!$B$21*(IF(E31<0,$J$1,0)+IF(F31<0,$J$2,0)) -> 0 | E47: 0 | F47: 0 | G47: 0 | H47: 0 | I47: 0 | J47: 299.798417 | K47: 299.798417
A49: Results | G49: Factored Results | M49: Ecc. Factor | N49: =IF(UserInput!B13="Spirals",0.85,IF(UserInput!B13="Ties",0.8,"Error")) -> 0.85
A50: Point No. | B50: P (kip) | C50: M (kip*ft) | D50: εsmax description | G50: Tens. Strain εt | H50: φ | I50: φPn (kip) | J50: φMn (kip*ft) | M50: fy | N50: =UserInput!B18 -> 60
A51: 1 | B51: =-SUM(I35:K35) -> 4026.398147 | C51: =(-I35*F35+-J35*G35+K35*H35)/12 -> 0 | D51: compression | G51: =F3 -> -0.003 | H51: =IF(G51<=$N$51,0.75,IF(G51>=$N$52,0.9,(G51-$N$51)/($N$52-$N$51)*(0.9-0.75)+0.75)) -> 0.75 | I51: =H51*N49*B51 -> 2566.828819 | J51: =H51*C51 -> 0 | M51: Comp Ctrl Strain εcl | N51: =IF(N50<=60,MIN(0.002,N50/UserInput!B19),(N50-60)/(100-60)*(0.004-0.002)+0.002) -> 0.002
A52: =A51+1 -> 2 | B52: =-SUM(I36:K36) -> 2532.5708 | C52: =(-I36*F36+-J36*G36+K36*H36)/12 -> 1144.862976 | D52: 0εsy | G52: =F4 -> 0 | H52: =IF(G52<=$N$51,0.75,IF(G52>=$N$52,0.9,(G52-$N$51)/($N$52-$N$51)*(0.9-0.75)+0.75)) -> 0.75 | I52: =MIN($I$51,H52*B52) -> 1899.4281 | J52: =H52*C52 -> 858.6472319 | M52: Tens Ctrl Strain εtl | N52: =IF(N50<=75,0.005,(N50-75)/(100-75)*(0.008-0.005)+0.005) -> 0.005
A53: 3 | B53: 2126.773996 | C53: 1440.132028 | D53: 0.25 | G53: 0.0005172413793 | H53: 0.75 | I53: =MIN($I$51,H53*B53) -> 1595.080497 | J53: 1080.099021
A54: 4 | B54: 1805.809807 | C54: 1610.344648 | D54: =D53+0.25 -> 0.5 | G54: 0.001034482759 | H54: 0.75 | I54: 1354.357355 | J54: 1207.758486
A55: 5 | B55: 1540.758024 | C55: 1720.030566 | D55: =D54+0.25 -> 0.75 | G55: 0.001551724138 | H55: 0.75 | I55: 1155.568518 | J55: 1290.022925
A56: 6 | B56: 1314.502603 | C56: 1799.355343 | D56: =D55+0.25 -> 1 | G56: 0.002068965517 | H56: 0.7534482759 | I56: 990.4097202 | J56: 1355.721181
A57: 7 | B57: 928.5631309 | C57: 1665.83225 | D57: =D56+1 -> 2 | G57: 0.004137931034 | H57: 0.8568965517 | I57: 795.6825449 | J57: 1427.445911
A58: 8 | B58: 704.4004396 | C58: 1513.341486 | D58: =D57+1 -> 3 | G58: 0.006206896552 | H58: 0.9 | I58: 633.9603956 | J58: 1362.007337
A59: 9 | B59: 536.9512925 | C59: 1362.244138 | D59: =D58+1 -> 4 | G59: 0.008275862069 | H59: 0.9 | I59: 483.2561633 | J59: 1226.019724
A60: 10 | B60: 310.3815266 | C60: 1125.602318 | D60: =D59+2 -> 6 | G60: 0.0124137931 | H60: 0.9 | I60: 279.3433739 | J60: 1013.042086
A61: 11 | B61: 151.8275562 | C61: 943.5896415 | D61: =D60+2 -> 8 | G61: 0.01655172414 | H61: 0.9 | I61: 136.6448006 | J61: 849.2306773
A62: 12 | B62: 25.64791641 | C62: 792.7645346 | D62: =D61+2 -> 10 | G62: 0.02068965517 | H62: 0.9 | I62: 23.08312477 | J62: 713.4880812
A63: 13 | B63: -599.596834 | C63: 0 | D63: tension | G63: 0.002068965517 | H63: 0.9 | I63: -539.6371506 | J63: =H63*C63 -> 0

Sheet Results (hidden)
D1: Nominal | F1: Factored
B2: Point No. | C2: Description | D2: P (kip) | E2: M (kip*ft) | F2: P (kip) | G2: M (kip*ft)
B3: 1 | C3: Compression | D3: 4026.398147 | E3: 5.684341886e-14 | F3: 2566.828819 | G3: 4.263256415e-14
B4: 2 | C4: εsmax=0εsy | D4: 3124.831903 | E4: 919.5662335 | F4: 2343.623927 | G4: 689.6746751
B5: 3 | C5: εsmax=0.25εsy | D5: 2599.514885 | E5: 1225.006293 | F5: 1949.636164 | G5: 918.7547199
B6: 4 | C6: εsmax=0.5εsy | D6: 2164.964598 | E6: 1374.382256 | F6: 1623.723448 | G6: 1030.786692
B7: 5 | C7: εsmax=0.75εsy | D7: 1805.568486 | E7: 1441.224138 | F7: 1354.176364 | G7: 1080.918104
B8: 6 | C8: Balanced | D8: 1503.084763 | E8: 1466.002046 | F8: 1132.496623 | G8: 1104.556714
B9: 7 | C9: εsmax=2εsy | D9: 801.0255465 | E9: 1275.474123 | F9: 686.3960286 | G9: 1092.949378
B10: 8 | C10: εsmax=3εsy | D10: 410.362259 | E10: 1047.090457 | F10: 369.3260331 | G10: 942.3814117
B11: 9 | C11: εsmax=4εsy | D11: 194.4042746 | E11: 866.5320795 | F11: 174.9638471 | G11: 779.8788716
B12: 10 | C12: εsmax=6εsy | D12: -87.72465186 | E12: 604.2579467 | F12: -78.95218667 | G12: 543.832152
B13: 11 | C13: εsmax=8εsy | D13: -237.4071487 | E13: 447.6190414 | F13: -213.6664338 | G13: 402.8571372
B14: 12 | C14: εsmax=10εsy | D14: -323.886778 | E14: 346.4690138 | F14: -291.4981002 | G14: 311.8221125
B15: 13 | C15: Tension | D15: -599.596834 | E15: -5.684341886e-14 | F15: -539.6371506 | G15: -5.115907697e-14
E17: Nominal | G17: Factored
D18: Approx. Pure Bending Capacity (kip*ft): | E18: 685.8089854 | F18: Approx. Pure Bending Capacity (kip*ft): | G18: 617.2280868

Sheet Comparison (hidden)
A1: Circular 36" diameter, 10 #9's, 3" clr, 4ksi conc, 60ksi steel
A2: SpColumn | D2: This Excel
A3: P | B3: M | D3: P | E3: M
A4: 2567.1 | B4: 0 | D4: 2566.828819 | E4: 4.263256415e-14
A5: 2567.1 | B5: 476.06 | D5: 2343.623927 | E5: 689.6746751
A6: 2377.4 | B6: 638.16 | D6: 1949.636164 | E6: 918.7547199
A7: 1662.5 | B7: 1008.48 | D7: 1623.723448 | E7: 1030.786692
A8: 1163.3 | B8: 1090.82 | D8: 1354.176364 | E8: 1080.918104
A9: 561 | B9: 1059.92 | D9: 1132.496623 | E9: 1104.556714
A10: 0 | B10: 624.04 | D10: 686.3960286 | E10: 1092.949378
A11: -540 | B11: 0 | D11: 369.3260331 | E11: 942.3814117
D12: 174.9638471 | E12: 779.8788716
D13: -78.95218667 | E13: 543.832152
D14: -213.6664338 | E14: 402.8571372
D15: -291.4981002 | E15: 311.8221125
D16: -539.6371506 | E16: -5.115907697e-14
A25: Rectangular 16"H, 12"W, 8 #5's, 2.6875 clr, 4ksi conc, 60ksi steel
A26: SpColumn | D26: This Excel
A27: P | B27: M | D27: P | E27: M
A28: 505.6 | B28: 0 | D28: 504.7197788 | E28: 0
A29: 505.6 | B29: 46.48 | D29: 390.2239876 | E29: 92.1036019
A30: 390.8 | B30: 91.67 | D30: 326.6931605 | E30: 106.9157894
A31: 276.2 | B31: 115.1 | D31: 275.9123334 | E31: 115.0398574
A32: 190.5 | B32: 121.38 | D32: 230.3489553 | E32: 118.7473644
A33: 116.9 | B33: 116.41 | D33: 191.4929119 | E33: 121.5687854
A34: 0 | B34: 68.63 | D34: 136.9520944 | E34: 118.6123147
A35: -133.9 | B35: 0 | D35: 90.22592307 | E35: 105.6601804
D36: 50.67411658 | E36: 89.62319831
D37: -5.13670229 | E37: 65.74933569
D38: -52.43570638 | E38: 44.54147595
D39: -81.15199248 | E39: 31.25997052
D40: -132.5359401 | E40: 0
